Publisher Label,Publisher URI,"Supplier ID","Supplier","Invoice No.","Amount £","Purpose","Transaction Number","Payment Date","Organisational Unit","Cost Centre(T)","Internal Category Number"
"Wolverhampton City Council","http://opendatacommunities.org/id/metropolitan-district-council/wolverhampton","704748","Johnston Sweepers Limited","61694289","91.03","Equipment - Purchase","190551208","16/01/2019","Fleet Services","Fleet Management","R4000"
"Wolverhampton City Council","http://opendatacommunities.org/id/metropolitan-district-council/wolverhampton","704748","Johnston Sweepers Limited","61694289","285.91","Equipment - Purchase","190551208","16/01/2019","Fleet Services","Fleet Management","R4000"
"Wolverhampton City Council","http://opendatacommunities.org/id/metropolitan-district-council/wolverhampton","704754","Jones Skips (Wolverhampton) Limited","59481","175.00","TPP - Waste Disposal","130240501","16/01/2019","Strengthening Families","EI Area 1- Eastfield","R5003"
"Wolverhampton City Council","http://opendatacommunities.org/id/metropolitan-district-council/wolverhampton","704754","Jones Skips (Wolverhampton) Limited","59435","175.00","TPP - Waste Disposal","130239996","16/01/2019","Children & Young People In Care","Head of Service - LAC","R5003"
"Wolverhampton City Council","http://opendatacommunities.org/id/metropolitan-district-council/wolverhampton","704754","Jones Skips (Wolverhampton) Limited","59436","-175.00","TPP - Waste Disposal","130239997","18/01/2019","Children & Young People In Care","Head of Service - LAC","R5003"
"Wolverhampton City Council","http://opendatacommunities.org/id/metropolitan-district-council/wolverhampton","704754","Jones Skips (Wolverhampton) Limited","59600","175.00","TPP - Waste Disposal","130241717","30/01/2019","Children & Young People In Care","Head of Service - LAC","R5003"
"Wolverhampton City Council","http://opendatacommunities.org/id/metropolitan-district-council/wolverhampton","704754","Jones Skips (Wolverhampton) Limited","59601","200.00","Materials","130241561","30/01/2019","Street Lighting","Street Lighting Maintenance","R4007"
"Wolverhampton City Council","http://opendatacommunities.org/id/metropolitan-district-council/wolverhampton","704754","Jones Skips (Wolverhampton) Limited","59598","175.00","TPP - Waste Disposal","130241715","30/01/2019","Children & Young People In Care","Head of Service - LAC","R5003"
"Wolverhampton City Council","http://opendatacommunities.org/id/metropolitan-district-council/wolverhampton","704754","Jones Skips (Wolverhampton) Limited","59599","175.00","TPP - Waste Disposal","130241716","30/01/2019","Children & Young People In Care","Head of Service - LAC","R5003"
"Wolverhampton City Council","http://opendatacommunities.org/id/metropolitan-district-council/wolverhampton","704754","Jones Skips (Wolverhampton) Limited","59597","175.00","TPP - Waste Disposal","130241714","30/01/2019","Children & Young People In Care","Head of Service - LAC","R5003"
"Wolverhampton City Council","http://opendatacommunities.org/id/metropolitan-district-council/wolverhampton","704754","Jones Skips (Wolverhampton) Limited","59668","175.00","TPP - Waste Disposal","130241718","30/01/2019","Strengthening Families","EI Area 2- Bilston/Rocket pool","R5003"
"Wolverhampton City Council","http://opendatacommunities.org/id/metropolitan-district-council/wolverhampton","704754","Jones Skips (Wolverhampton) Limited","58333","350.00","TPP - Waste Disposal","130238850","18/01/2019","Children & Young People In Care","Head of Service - LAC","R5003"
"Wolverhampton City Council","http://opendatacommunities.org/id/metropolitan-district-council/wolverhampton","704754","Jones Skips (Wolverhampton) Limited","58351","175.00","Waste Management","130238851","02/01/2019","Local Economy","Blakenhall Community & Healthy Living Centre","R2703"
"Wolverhampton City Council","http://opendatacommunities.org/id/metropolitan-district-council/wolverhampton","704754","Jones Skips (Wolverhampton) Limited","59602","175.00","TPP - Waste Disposal","130241562","25/01/2019","Local Economy","Central Library","R5003"
"Wolverhampton City Council","http://opendatacommunities.org/id/metropolitan-district-council/wolverhampton","704755","Jones Springs (Eng)Limited","30115","330.00","Equipment - Purchase","190548903","11/01/2019","Fleet Services","Fleet Management","R4000"
"Wolverhampton City Council","http://opendatacommunities.org/id/metropolitan-district-council/wolverhampton","704755","Jones Springs (Eng)Limited","30115","38.00","Equipment - Purchase","190548903","11/01/2019","Fleet Services","Fleet Management","R4000"
"Wolverhampton City Council","http://opendatacommunities.org/id/metropolitan-district-council/wolverhampton","704755","Jones Springs (Eng)Limited","30115","330.00","Equipment - Purchase","190548903","11/01/2019","Fleet Services","Fleet Management","R4000"
"Wolverhampton City Council","http://opendatacommunities.org/id/metropolitan-district-council/wolverhampton","704755","Jones Springs (Eng)Limited","30115","38.00","Equipment - Purchase","190548903","11/01/2019","Fleet Services","Fleet Management","R4000"
"Wolverhampton City Council","http://opendatacommunities.org/id/metropolitan-district-council/wolverhampton","704756","Jones Transmissions","6640","540.11","Services - Professional Fees","190555487","30/01/2019","Fleet Services","Fleet Management","R4400"
"Wolverhampton City Council","http://opendatacommunities.org/id/metropolitan-district-council/wolverhampton","704756","Jones Transmissions","6640","295.00","Services - Professional Fees","190555487","30/01/2019","Fleet Services","Fleet Management","R4400"
"Wolverhampton City Council","http://opendatacommunities.org/id/metropolitan-district-council/wolverhampton","704756","Jones Transmissions","6637","540.11","Services - Professional Fees","190555486","30/01/2019","Fleet Services","Fleet Management","R4400"
"Wolverhampton City Council","http://opendatacommunities.org/id/metropolitan-district-council/wolverhampton","704756","Jones Transmissions","6635","595.00","Services - Professional Fees","190555485","30/01/2019","Fleet Services","Fleet Management","R4400"
"Wolverhampton City Council","http://opendatacommunities.org/id/metropolitan-district-council/wolverhampton","704756","Jones Transmissions","6635","395.00","Services - Professional Fees","190555485","30/01/2019","Fleet Services","Fleet Management","R4400"
"Wolverhampton City Council","http://opendatacommunities.org/id/metropolitan-district-council/wolverhampton","704756","Jones Transmissions","6635","20.00","Services - Professional Fees","190555485","30/01/2019","Fleet Services","Fleet Management","R4400"
"Wolverhampton City Council","http://opendatacommunities.org/id/metropolitan-district-council/wolverhampton","704756","Jones Transmissions","6642","20.00","Services - Professional Fees","190555488","30/01/2019","Fleet Services","Fleet Management","R4400"
"Wolverhampton City Council","http://opendatacommunities.org/id/metropolitan-district-council/wolverhampton","704756","Jones Transmissions","6642","395.00","Services - Professional Fees","190555488","30/01/2019","Fleet Services","Fleet Management","R4400"
"Wolverhampton City Council","http://opendatacommunities.org/id/metropolitan-district-council/wolverhampton","704802","K Thornton","201843","100.00","Services - Supplies and Services to service users","130240502","16/01/2019","Strengthening Families","EI Area 7 - Low Hill","R4408"
"Wolverhampton City Council","http://opendatacommunities.org/id/metropolitan-district-council/wolverhampton","704838","Kee Services Limited","469290","197.14","R&M - Departmental planned (internal)","130237006","02/01/2019","Maintenance Programme","Centralised R&M","R2000"
"Wolverhampton City Council","http://opendatacommunities.org/id/metropolitan-district-council/wolverhampton","704842","Keith Carrier & Son","0069092","75.00","Services - Fees and Charges","130239053","16/01/2019","Maintenance Programme","Centralised R&M","R4401"
"Wolverhampton City Council","http://opendatacommunities.org/id/metropolitan-district-council/wolverhampton","704842","Keith Carrier & Son","0031356","110.00","R&M - Departmental planned (external)","130241563","25/01/2019","Maintenance Programme","Centralised R&M","R2001"
"Wolverhampton City Council","http://opendatacommunities.org/id/metropolitan-district-council/wolverhampton","704847","Keltic Clothing Limited","148962","559.75","Clothing / Uniforms","130237605","04/01/2019","Transportation","School Crossing Patrol","R4201"
"Wolverhampton City Council","http://opendatacommunities.org/id/metropolitan-district-council/wolverhampton","704847","Keltic Clothing Limited","148962","239.25","Clothing / Uniforms","130237605","04/01/2019","Transportation","School Crossing Patrol","R4201"
"Wolverhampton City Council","http://opendatacommunities.org/id/metropolitan-district-council/wolverhampton","704847","Keltic Clothing Limited","148962","69.75","Clothing / Uniforms","130237605","04/01/2019","Transportation","School Crossing Patrol","R4201"
"Wolverhampton City Council","http://opendatacommunities.org/id/metropolitan-district-council/wolverhampton","704847","Keltic Clothing Limited","148962","8.95","Clothing / Uniforms","130237605","04/01/2019","Transportation","School Crossing Patrol","R4201"
"Wolverhampton City Council","http://opendatacommunities.org/id/metropolitan-district-council/wolverhampton","704855","Kenton Research Limited","Payment Request Personal License","37.00","Fees - Licensing - Licensing Act 2003","130240613","14/01/2019","Licensing","Licensing - Licensing Act 2003","R9329"
"Wolverhampton City Council","http://opendatacommunities.org/id/metropolitan-district-council/wolverhampton","704871","Keysoft Solutions Limited","2019579","690.00","Computing - Purchase of Software","130239533","30/01/2019","Landscape","Landscape","R4531"
"Wolverhampton City Council","http://opendatacommunities.org/id/metropolitan-district-council/wolverhampton","704889","Killgerm Chemicals Limited","SI02-0211368","747.20","Materials","130238376","09/01/2019","Environmental Maintenance","Pest Control","R4007"
"Wolverhampton City Council","http://opendatacommunities.org/id/metropolitan-district-council/wolverhampton","704891","Kilns & Furnaces Limited","3330","1,237.55","Equipment - R & M","130239375","11/01/2019","Adult Education","Continuing Education","R4003"
"Wolverhampton City Council","http://opendatacommunities.org/id/metropolitan-district-council/wolverhampton","704901","Kingfisher Environmental Servs Limited","1812611","76.67","Services - Professional Fees","130239862","09/01/2019","Leisure Services","Bert Williams Leisure Centre","R4400"
"Wolverhampton City Council","http://opendatacommunities.org/id/metropolitan-district-council/wolverhampton","704921","Knight Kavanagh & Page","5096","2,475.00","Services - Consultants","130241880","25/01/2019","Planning","Planning","R4404"
"Wolverhampton City Council","http://opendatacommunities.org/id/metropolitan-district-council/wolverhampton","704931","Konica Minolta Bus.Solutions(UK)Limited.","1140556780","6.20","Photocopier Operating Lease","130232981","02/01/2019","Local Economy","Global Budgets","R4304"
"Wolverhampton City Council","http://opendatacommunities.org/id/metropolitan-district-council/wolverhampton","704936","Kroy (Europe) Limited","IV235499","220.00","Signage and Labels","130239864","30/01/2019","Licensing","Licensing - Private Hire Vehicles","R4009"
"Wolverhampton City Council","http://opendatacommunities.org/id/metropolitan-district-council/wolverhampton","704936","Kroy (Europe) Limited","IV235499","11.00","Signage and Labels","130239864","30/01/2019","Licensing","Licensing - Private Hire Vehicles","R4009"
"Wolverhampton City Council","http://opendatacommunities.org/id/metropolitan-district-council/wolverhampton","704964","L.M.S. Music Supplies","693502","1,170.75","Equipment - Purchase","130239865","23/01/2019","School Planning & Resources","Music Support Team","R4000"
"Wolverhampton City Council","http://opendatacommunities.org/id/metropolitan-district-council/wolverhampton","704995","Langham:A Div�N Of Gordon Ellis & Co","SI-1162626","365.80","Equipment - Purchase","130238123","09/01/2019","Older People Provider Services","ILS Stores","R4000"
"Wolverhampton City Council","http://opendatacommunities.org/id/metropolitan-district-council/wolverhampton","704995","Langham:A Div�N Of Gordon Ellis & Co","SI-1162794","361.20","Equipment - Purchase","130238977","11/01/2019","Older People Provider Services","ILS Stores","R4000"
"Wolverhampton City Council","http://opendatacommunities.org/id/metropolitan-district-council/wolverhampton","704995","Langham:A Div�N Of Gordon Ellis & Co","SI-1162794","481.60","Equipment - Purchase","130238977","11/01/2019","Older People Provider Services","ILS Stores","R4000"
"Wolverhampton City Council","http://opendatacommunities.org/id/metropolitan-district-council/wolverhampton","705003","Lapwing","270205","143.70","Materials","130240701","23/01/2019","Highways Maintenance","Patching","R4007"
"Wolverhampton City Council","http://opendatacommunities.org/id/metropolitan-district-council/wolverhampton","705003","Lapwing","270205","38.50","Materials","130240701","23/01/2019","Highways Maintenance","Patching","R4007"
"Wolverhampton City Council","http://opendatacommunities.org/id/metropolitan-district-council/wolverhampton","705003","Lapwing","270205","450.00","Materials","130240701","23/01/2019","Highways Maintenance","Patching","R4007"
"Wolverhampton City Council","http://opendatacommunities.org/id/metropolitan-district-council/wolverhampton","705014","Lauren Van Helmond","LVH71218","66.65","Services - Professional Fees","130238124","09/01/2019","Visitor Economy","Contemporary Gallery - NPO ACE WAG","R4400"
"Wolverhampton City Council","http://opendatacommunities.org/id/metropolitan-district-council/wolverhampton","705123","Linden House (Tettenhall) Limited","5651","166.67","Room Hire","130239376","09/01/2019","Public Service Reform","Workforce Development","R2201"
"Wolverhampton City Council","http://opendatacommunities.org/id/metropolitan-district-council/wolverhampton","705123","Linden House (Tettenhall) Limited","5651","12.50","Equipment - Hire","130239376","09/01/2019","Public Service Reform","Workforce Development","R4001"
"Wolverhampton City Council","http://opendatacommunities.org/id/metropolitan-district-council/wolverhampton","705123","Linden House (Tettenhall) Limited","5651","216.67","Catering","130239376","09/01/2019","Public Service Reform","Workforce Development","R4100"
"Wolverhampton City Council","http://opendatacommunities.org/id/metropolitan-district-council/wolverhampton","705163","Local Government Information Unit","305170","21,250.00","Subscriptions","130238377","16/01/2019","Public Service Reform","Members Expenses","R4701"
"Wolverhampton City Council","http://opendatacommunities.org/id/metropolitan-district-council/wolverhampton","705183","Lodge Tyre Co.Limited","15R01189","-0.50","Vehicle Maintenance - Spare Parts","190551927","18/01/2019","Fleet Services","Fleet Management","R3009"
"Wolverhampton City Council","http://opendatacommunities.org/id/metropolitan-district-council/wolverhampton","705183","Lodge Tyre Co.Limited","15R01194","-3.50","Vehicle Maintenance - Spare Parts","190551931","18/01/2019","Fleet Services","Fleet Management","R3009"
"Wolverhampton City Council","http://opendatacommunities.org/id/metropolitan-district-council/wolverhampton","705183","Lodge Tyre Co.Limited","15R01186","-25.75","Vehicle Maintenance - Spare Parts","190551924","18/01/2019","Fleet Services","Fleet Management","R3009"
"Wolverhampton City Council","http://opendatacommunities.org/id/metropolitan-district-council/wolverhampton","705183","Lodge Tyre Co.Limited","15R01184","-0.50","Vehicle Maintenance - Spare Parts","190551922","18/01/2019","Fleet Services","Fleet Management","R3009"
"Wolverhampton City Council","http://opendatacommunities.org/id/metropolitan-district-council/wolverhampton","705183","Lodge Tyre Co.Limited","15R01193","-3.50","Vehicle Maintenance - Spare Parts","190551930","18/01/2019","Fleet Services","Fleet Management","R3009"
"Wolverhampton City Council","http://opendatacommunities.org/id/metropolitan-district-council/wolverhampton","705183","Lodge Tyre Co.Limited","15R01191","-22.00","Vehicle Maintenance - Spare Parts","190551929","18/01/2019","Fleet Services","Fleet Management","R3009"
"Wolverhampton City Council","http://opendatacommunities.org/id/metropolitan-district-council/wolverhampton","705183","Lodge Tyre Co.Limited","15R01185","-2.00","Vehicle Maintenance - Spare Parts","190551923","18/01/2019","Fleet Services","Fleet Management","R3009"
"Wolverhampton City Council","http://opendatacommunities.org/id/metropolitan-district-council/wolverhampton","705183","Lodge Tyre Co.Limited","15R01201","-3.00","Vehicle Maintenance - Spare Parts","190551932","18/01/2019","Fleet Services","Fleet Management","R3009"
"Wolverhampton City Council","http://opendatacommunities.org/id/metropolitan-district-council/wolverhampton","705183","Lodge Tyre Co.Limited","15R01187","-130.91","Vehicle Maintenance - Spare Parts","190551925","18/01/2019","Fleet Services","Fleet Management","R3009"
"Wolverhampton City Council","http://opendatacommunities.org/id/metropolitan-district-council/wolverhampton","705183","Lodge Tyre Co.Limited","15R01190","-0.50","Vehicle Maintenance - Spare Parts","190551928","18/01/2019","Fleet Services","Fleet Management","R3009"
"Wolverhampton City Council","http://opendatacommunities.org/id/metropolitan-district-council/wolverhampton","705183","Lodge Tyre Co.Limited","15R01188","-4.00","Vehicle Maintenance - Spare Parts","190551926","18/01/2019","Fleet Services","Fleet Management","R3009"
"Wolverhampton City Council","http://opendatacommunities.org/id/metropolitan-district-council/wolverhampton","705183","Lodge Tyre Co.Limited","PE005643","15.00","Vehicle Maintenance - Spare Parts","190551982","18/01/2019","Fleet Services","Fleet Management","R3009"
"Wolverhampton City Council","http://opendatacommunities.org/id/metropolitan-district-council/wolverhampton","705183","Lodge Tyre Co.Limited","PE005643","65.00","Vehicle Maintenance - Spare Parts","190551982","18/01/2019","Fleet Services","Fleet Management","R3009"
"Wolverhampton City Council","http://opendatacommunities.org/id/metropolitan-district-council/wolverhampton","705183","Lodge Tyre Co.Limited","PE005643","60.00","Vehicle Maintenance - Spare Parts","190551982","18/01/2019","Fleet Services","Fleet Management","R3009"
"Wolverhampton City Council","http://opendatacommunities.org/id/metropolitan-district-council/wolverhampton","705183","Lodge Tyre Co.Limited","PE005643","56.00","Vehicle Maintenance - Spare Parts","190551982","18/01/2019","Fleet Services","Fleet Management","R3009"
"Wolverhampton City Council","http://opendatacommunities.org/id/metropolitan-district-council/wolverhampton","705183","Lodge Tyre Co.Limited","PE005643","66.00","Vehicle Maintenance - Spare Parts","190551982","18/01/2019","Fleet Services","Fleet Management","R3009"
"Wolverhampton City Council","http://opendatacommunities.org/id/metropolitan-district-council/wolverhampton","705183","Lodge Tyre Co.Limited","PE005643","130.00","Vehicle Maintenance - Spare Parts","190551982","18/01/2019","Fleet Services","Fleet Management","R3009"
"Wolverhampton City Council","http://opendatacommunities.org/id/metropolitan-district-council/wolverhampton","705183","Lodge Tyre Co.Limited","PE005643","54.00","Vehicle Maintenance - Spare Parts","190551982","18/01/2019","Fleet Services","Fleet Management","R3009"
"Wolverhampton City Council","http://opendatacommunities.org/id/metropolitan-district-council/wolverhampton","705183","Lodge Tyre Co.Limited","PE005643","60.00","Vehicle Maintenance - Spare Parts","190551982","18/01/2019","Fleet Services","Fleet Management","R3009"
"Wolverhampton City Council","http://opendatacommunities.org/id/metropolitan-district-council/wolverhampton","705183","Lodge Tyre Co.Limited","PE005643","3.50","Vehicle Maintenance - Spare Parts","190551982","18/01/2019","Fleet Services","Fleet Management","R3009"
"Wolverhampton City Council","http://opendatacommunities.org/id/metropolitan-district-council/wolverhampton","705183","Lodge Tyre Co.Limited","PE005643","130.00","Vehicle Maintenance - Spare Parts","190551982","18/01/2019","Fleet Services","Fleet Management","R3009"
"Wolverhampton City Council","http://opendatacommunities.org/id/metropolitan-district-council/wolverhampton","705183","Lodge Tyre Co.Limited","PE005643","54.00","Vehicle Maintenance - Spare Parts","190551982","18/01/2019","Fleet Services","Fleet Management","R3009"
"Wolverhampton City Council","http://opendatacommunities.org/id/metropolitan-district-council/wolverhampton","705183","Lodge Tyre Co.Limited","PE005643","85.00","Vehicle Maintenance - Spare Parts","190551982","18/01/2019","Fleet Services","Fleet Management","R3009"
"Wolverhampton City Council","http://opendatacommunities.org/id/metropolitan-district-council/wolverhampton","705183","Lodge Tyre Co.Limited","PE005643","3.50","Vehicle Maintenance - Spare Parts","190551982","18/01/2019","Fleet Services","Fleet Management","R3009"
"Wolverhampton City Council","http://opendatacommunities.org/id/metropolitan-district-council/wolverhampton","705183","Lodge Tyre Co.Limited","PE005643","65.00","Vehicle Maintenance - Spare Parts","190551982","18/01/2019","Fleet Services","Fleet Management","R3009"
"Wolverhampton City Council","http://opendatacommunities.org/id/metropolitan-district-council/wolverhampton","705183","Lodge Tyre Co.Limited","PE005643","407.52","Vehicle Maintenance - Spare Parts","190551982","18/01/2019","Fleet Services","Fleet Management","R3009"
"Wolverhampton City Council","http://opendatacommunities.org/id/metropolitan-district-council/wolverhampton","705183","Lodge Tyre Co.Limited","PE005643","15.00","Vehicle Maintenance - Spare Parts","190551982","18/01/2019","Fleet Services","Fleet Management","R3009"
"Wolverhampton City Council","http://opendatacommunities.org/id/metropolitan-district-council/wolverhampton","705183","Lodge Tyre Co.Limited","PE005643","58.00","Vehicle Maintenance - Spare Parts","190551982","18/01/2019","Fleet Services","Fleet Management","R3009"
"Wolverhampton City Council","http://opendatacommunities.org/id/metropolitan-district-council/wolverhampton","705183","Lodge Tyre Co.Limited","PE005643","30.00","Vehicle Maintenance - Spare Parts","190551982","18/01/2019","Fleet Services","Fleet Management","R3009"
"Wolverhampton City Council","http://opendatacommunities.org/id/metropolitan-district-council/wolverhampton","705183","Lodge Tyre Co.Limited","PE005643","77.50","Vehicle Maintenance - Spare Parts","190551982","18/01/2019","Fleet Services","Fleet Management","R3009"
"Wolverhampton City Council","http://opendatacommunities.org/id/metropolitan-district-council/wolverhampton","705183","Lodge Tyre Co.Limited","PE005643","43.50","Vehicle Maintenance - Spare Parts","190551982","18/01/2019","Fleet Services","Fleet Management","R3009"
"Wolverhampton City Council","http://opendatacommunities.org/id/metropolitan-district-council/wolverhampton","705183","Lodge Tyre Co.Limited","PE005643","38.75","Vehicle Maintenance - Spare Parts","190551982","18/01/2019","Fleet Services","Fleet Management","R3009"
"Wolverhampton City Council","http://opendatacommunities.org/id/metropolitan-district-council/wolverhampton","705183","Lodge Tyre Co.Limited","PE005643","60.00","Vehicle Maintenance - Spare Parts","190551982","18/01/2019","Fleet Services","Fleet Management","R3009"
"Wolverhampton City Council","http://opendatacommunities.org/id/metropolitan-district-council/wolverhampton","705183","Lodge Tyre Co.Limited","PE005643","179.00","Vehicle Maintenance - Spare Parts","190551982","18/01/2019","Fleet Services","Fleet Management","R3009"
"Wolverhampton City Council","http://opendatacommunities.org/id/metropolitan-district-council/wolverhampton","705183","Lodge Tyre Co.Limited","PE005643","25.00","Vehicle Maintenance - Spare Parts","190551982","18/01/2019","Fleet Services","Fleet Management","R3009"
"Wolverhampton City Council","http://opendatacommunities.org/id/metropolitan-district-council/wolverhampton","705183","Lodge Tyre Co.Limited","PE005643","66.00","Vehicle Maintenance - Spare Parts","190551982","18/01/2019","Fleet Services","Fleet Management","R3009"
"Wolverhampton City Council","http://opendatacommunities.org/id/metropolitan-district-council/wolverhampton","705183","Lodge Tyre Co.Limited","PE005643","66.00","Vehicle Maintenance - Spare Parts","190551982","18/01/2019","Fleet Services","Fleet Management","R3009"
"Wolverhampton City Council","http://opendatacommunities.org/id/metropolitan-district-council/wolverhampton","705183","Lodge Tyre Co.Limited","PE005643","85.61","Vehicle Maintenance - Spare Parts","190551982","18/01/2019","Fleet Services","Fleet Management","R3009"
"Wolverhampton City Council","http://opendatacommunities.org/id/metropolitan-district-council/wolverhampton","705183","Lodge Tyre Co.Limited","PE005643","87.22","Vehicle Maintenance - Spare Parts","190551982","18/01/2019","Fleet Services","Fleet Management","R3009"
"Wolverhampton City Council","http://opendatacommunities.org/id/metropolitan-district-council/wolverhampton","705183","Lodge Tyre Co.Limited","PE005643","15.00","Vehicle Maintenance - Spare Parts","190551982","18/01/2019","Fleet Services","Fleet Management","R3009"
"Wolverhampton City Council","http://opendatacommunities.org/id/metropolitan-district-council/wolverhampton","705183","Lodge Tyre Co.Limited","PE005643","21.75","Vehicle Maintenance - Spare Parts","190551982","18/01/2019","Fleet Services","Fleet Management","R3009"
"Wolverhampton City Council","http://opendatacommunities.org/id/metropolitan-district-council/wolverhampton","705183","Lodge Tyre Co.Limited","PE005643","15.00","Vehicle Maintenance - Spare Parts","190551982","18/01/2019","Fleet Services","Fleet Management","R3009"
"Wolverhampton City Council","http://opendatacommunities.org/id/metropolitan-district-council/wolverhampton","705183","Lodge Tyre Co.Limited","PE005643","120.00","Vehicle Maintenance - Spare Parts","190551982","18/01/2019","Fleet Services","Fleet Management","R3009"
"Wolverhampton City Council","http://opendatacommunities.org/id/metropolitan-district-council/wolverhampton","705183","Lodge Tyre Co.Limited","PE005643","15.00","Vehicle Maintenance - Spare Parts","190551982","18/01/2019","Fleet Services","Fleet Management","R3009"
"Wolverhampton City Council","http://opendatacommunities.org/id/metropolitan-district-council/wolverhampton","705183","Lodge Tyre Co.Limited","PE005643","3.50","Vehicle Maintenance - Spare Parts","190551982","18/01/2019","Fleet Services","Fleet Management","R3009"
"Wolverhampton City Council","http://opendatacommunities.org/id/metropolitan-district-council/wolverhampton","705183","Lodge Tyre Co.Limited","PE005643","3.00","Vehicle Maintenance - Spare Parts","190551982","18/01/2019","Fleet Services","Fleet Management","R3009"
"Wolverhampton City Council","http://opendatacommunities.org/id/metropolitan-district-council/wolverhampton","705183","Lodge Tyre Co.Limited","PE005643","70.00","Vehicle Maintenance - Spare Parts","190551982","18/01/2019","Fleet Services","Fleet Management","R3009"
"Wolverhampton City Council","http://opendatacommunities.org/id/metropolitan-district-council/wolverhampton","705183","Lodge Tyre Co.Limited","PE005643","15.50","Vehicle Maintenance - Spare Parts","190551982","18/01/2019","Fleet Services","Fleet Management","R3009"
"Wolverhampton City Council","http://opendatacommunities.org/id/metropolitan-district-council/wolverhampton","705183","Lodge Tyre Co.Limited","PE005643","3.00","Vehicle Maintenance - Spare Parts","190551982","18/01/2019","Fleet Services","Fleet Management","R3009"
"Wolverhampton City Council","http://opendatacommunities.org/id/metropolitan-district-council/wolverhampton","705183","Lodge Tyre Co.Limited","PE005643","60.00","Vehicle Maintenance - Spare Parts","190551982","18/01/2019","Fleet Services","Fleet Management","R3009"
"Wolverhampton City Council","http://opendatacommunities.org/id/metropolitan-district-council/wolverhampton","705183","Lodge Tyre Co.Limited","PE005643","70.00","Vehicle Maintenance - Spare Parts","190551982","18/01/2019","Fleet Services","Fleet Management","R3009"
"Wolverhampton City Council","http://opendatacommunities.org/id/metropolitan-district-council/wolverhampton","705183","Lodge Tyre Co.Limited","PE005643","3.00","Vehicle Maintenance - Spare Parts","190551982","18/01/2019","Fleet Services","Fleet Management","R3009"
"Wolverhampton City Council","http://opendatacommunities.org/id/metropolitan-district-council/wolverhampton","705183","Lodge Tyre Co.Limited","PE005643","3.00","Vehicle Maintenance - Spare Parts","190551982","18/01/2019","Fleet Services","Fleet Management","R3009"
"Wolverhampton City Council","http://opendatacommunities.org/id/metropolitan-district-council/wolverhampton","705183","Lodge Tyre Co.Limited","PE005643","79.00","Vehicle Maintenance - Spare Parts","190551982","18/01/2019","Fleet Services","Fleet Management","R3009"
"Wolverhampton City Council","http://opendatacommunities.org/id/metropolitan-district-council/wolverhampton","705183","Lodge Tyre Co.Limited","PE005643","3.00","Vehicle Maintenance - Spare Parts","190551982","18/01/2019","Fleet Services","Fleet Management","R3009"
"Wolverhampton City Council","http://opendatacommunities.org/id/metropolitan-district-council/wolverhampton","705183","Lodge Tyre Co.Limited","PE005643","60.00","Vehicle Maintenance - Spare Parts","190551982","18/01/2019","Fleet Services","Fleet Management","R3009"
"Wolverhampton City Council","http://opendatacommunities.org/id/metropolitan-district-council/wolverhampton","705183","Lodge Tyre Co.Limited","PE005643","15.50","Vehicle Maintenance - Spare Parts","190551982","18/01/2019","Fleet Services","Fleet Management","R3009"
"Wolverhampton City Council","http://opendatacommunities.org/id/metropolitan-district-council/wolverhampton","705183","Lodge Tyre Co.Limited","PE005643","15.00","Vehicle Maintenance - Spare Parts","190551982","18/01/2019","Fleet Services","Fleet Management","R3009"
"Wolverhampton City Council","http://opendatacommunities.org/id/metropolitan-district-council/wolverhampton","705183","Lodge Tyre Co.Limited","PE005643","70.00","Vehicle Maintenance - Spare Parts","190551982","18/01/2019","Fleet Services","Fleet Management","R3009"
"Wolverhampton City Council","http://opendatacommunities.org/id/metropolitan-district-council/wolverhampton","705183","Lodge Tyre Co.Limited","PE005643","3.00","Vehicle Maintenance - Spare Parts","190551982","18/01/2019","Fleet Services","Fleet Management","R3009"
"Wolverhampton City Council","http://opendatacommunities.org/id/metropolitan-district-council/wolverhampton","705183","Lodge Tyre Co.Limited","PE005643","15.00","Vehicle Maintenance - Spare Parts","190551982","18/01/2019","Fleet Services","Fleet Management","R3009"
"Wolverhampton City Council","http://opendatacommunities.org/id/metropolitan-district-council/wolverhampton","705183","Lodge Tyre Co.Limited","PE005643","25.00","Vehicle Maintenance - Spare Parts","190551982","18/01/2019","Fleet Services","Fleet Management","R3009"
"Wolverhampton City Council","http://opendatacommunities.org/id/metropolitan-district-council/wolverhampton","705183","Lodge Tyre Co.Limited","PE005643","15.00","Vehicle Maintenance - Spare Parts","190551982","18/01/2019","Fleet Services","Fleet Management","R3009"
"Wolverhampton City Council","http://opendatacommunities.org/id/metropolitan-district-council/wolverhampton","705183","Lodge Tyre Co.Limited","PE005643","3.00","Vehicle Maintenance - Spare Parts","190551982","18/01/2019","Fleet Services","Fleet Management","R3009"
"Wolverhampton City Council","http://opendatacommunities.org/id/metropolitan-district-council/wolverhampton","705183","Lodge Tyre Co.Limited","PE005643","63.90","Vehicle Maintenance - Spare Parts","190551982","18/01/2019","Fleet Services","Fleet Management","R3009"
"Wolverhampton City Council","http://opendatacommunities.org/id/metropolitan-district-council/wolverhampton","705183","Lodge Tyre Co.Limited","PE005643","15.50","Vehicle Maintenance - Spare Parts","190551982","18/01/2019","Fleet Services","Fleet Management","R3009"
"Wolverhampton City Council","http://opendatacommunities.org/id/metropolitan-district-council/wolverhampton","705183","Lodge Tyre Co.Limited","PE005643","15.00","Vehicle Maintenance - Spare Parts","190551982","18/01/2019","Fleet Services","Fleet Management","R3009"
"Wolverhampton City Council","http://opendatacommunities.org/id/metropolitan-district-council/wolverhampton","705183","Lodge Tyre Co.Limited","PE005643","3.00","Vehicle Maintenance - Spare Parts","190551982","18/01/2019","Fleet Services","Fleet Management","R3009"
"Wolverhampton City Council","http://opendatacommunities.org/id/metropolitan-district-council/wolverhampton","705183","Lodge Tyre Co.Limited","PE005643","50.00","Vehicle Maintenance - Spare Parts","190551982","18/01/2019","Fleet Services","Fleet Management","R3009"
"Wolverhampton City Council","http://opendatacommunities.org/id/metropolitan-district-council/wolverhampton","705183","Lodge Tyre Co.Limited","PE005643","390.00","Vehicle Maintenance - Spare Parts","190551982","18/01/2019","Fleet Services","Fleet Management","R3009"
"Wolverhampton City Council","http://opendatacommunities.org/id/metropolitan-district-council/wolverhampton","705183","Lodge Tyre Co.Limited","PE005643","595.70","Vehicle Maintenance - Spare Parts","190551982","18/01/2019","Fleet Services","Fleet Management","R3009"
"Wolverhampton City Council","http://opendatacommunities.org/id/metropolitan-district-council/wolverhampton","705183","Lodge Tyre Co.Limited","PE005643","195.00","Vehicle Maintenance - Spare Parts","190551982","18/01/2019","Fleet Services","Fleet Management","R3009"
"Wolverhampton City Council","http://opendatacommunities.org/id/metropolitan-district-council/wolverhampton","705183","Lodge Tyre Co.Limited","PE005643","50.00","Vehicle Maintenance - Spare Parts","190551982","18/01/2019","Fleet Services","Fleet Management","R3009"
"Wolverhampton City Council","http://opendatacommunities.org/id/metropolitan-district-council/wolverhampton","705183","Lodge Tyre Co.Limited","PE005643","195.00","Vehicle Maintenance - Spare Parts","190551982","18/01/2019","Fleet Services","Fleet Management","R3009"
"Wolverhampton City Council","http://opendatacommunities.org/id/metropolitan-district-council/wolverhampton","705183","Lodge Tyre Co.Limited","PE005643","50.00","Vehicle Maintenance - Spare Parts","190551982","18/01/2019","Fleet Services","Fleet Management","R3009"
"Wolverhampton City Council","http://opendatacommunities.org/id/metropolitan-district-council/wolverhampton","705183","Lodge Tyre Co.Limited","PE005643","30.00","Vehicle Maintenance - Spare Parts","190551982","18/01/2019","Fleet Services","Fleet Management","R3009"
"Wolverhampton City Council","http://opendatacommunities.org/id/metropolitan-district-council/wolverhampton","705183","Lodge Tyre Co.Limited","PE005643","3.00","Vehicle Maintenance - Spare Parts","190551982","18/01/2019","Fleet Services","Fleet Management","R3009"
"Wolverhampton City Council","http://opendatacommunities.org/id/metropolitan-district-council/wolverhampton","705183","Lodge Tyre Co.Limited","PE005643","42.50","Vehicle Maintenance - Spare Parts","190551982","18/01/2019","Fleet Services","Fleet Management","R3009"
"Wolverhampton City Council","http://opendatacommunities.org/id/metropolitan-district-council/wolverhampton","705183","Lodge Tyre Co.Limited","PE005643","240.00","Vehicle Maintenance - Spare Parts","190551982","18/01/2019","Fleet Services","Fleet Management","R3009"
"Wolverhampton City Council","http://opendatacommunities.org/id/metropolitan-district-council/wolverhampton","705183","Lodge Tyre Co.Limited","PE005643","179.00","Vehicle Maintenance - Spare Parts","190551982","18/01/2019","Fleet Services","Fleet Management","R3009"
"Wolverhampton City Council","http://opendatacommunities.org/id/metropolitan-district-council/wolverhampton","705183","Lodge Tyre Co.Limited","PE005643","54.00","Vehicle Maintenance - Spare Parts","190551982","18/01/2019","Fleet Services","Fleet Management","R3009"
"Wolverhampton City Council","http://opendatacommunities.org/id/metropolitan-district-council/wolverhampton","705183","Lodge Tyre Co.Limited","PE005643","352.90","Vehicle Maintenance - Spare Parts","190551982","18/01/2019","Fleet Services","Fleet Management","R3009"
"Wolverhampton City Council","http://opendatacommunities.org/id/metropolitan-district-council/wolverhampton","705183","Lodge Tyre Co.Limited","PE005643","3.00","Vehicle Maintenance - Spare Parts","190551982","18/01/2019","Fleet Services","Fleet Management","R3009"
"Wolverhampton City Council","http://opendatacommunities.org/id/metropolitan-district-council/wolverhampton","705183","Lodge Tyre Co.Limited","PE005643","15.00","Vehicle Maintenance - Spare Parts","190551982","18/01/2019","Fleet Services","Fleet Management","R3009"
"Wolverhampton City Council","http://opendatacommunities.org/id/metropolitan-district-council/wolverhampton","705183","Lodge Tyre Co.Limited","PE005643","55.00","Vehicle Maintenance - Spare Parts","190551982","18/01/2019","Fleet Services","Fleet Management","R3009"
"Wolverhampton City Council","http://opendatacommunities.org/id/metropolitan-district-council/wolverhampton","705183","Lodge Tyre Co.Limited","PE005643","15.00","Vehicle Maintenance - Spare Parts","190551982","18/01/2019","Fleet Services","Fleet Management","R3009"
"Wolverhampton City Council","http://opendatacommunities.org/id/metropolitan-district-council/wolverhampton","705183","Lodge Tyre Co.Limited","PE005643","54.00","Vehicle Maintenance - Spare Parts","190551982","18/01/2019","Fleet Services","Fleet Management","R3009"
"Wolverhampton City Council","http://opendatacommunities.org/id/metropolitan-district-council/wolverhampton","705183","Lodge Tyre Co.Limited","PE005643","60.00","Vehicle Maintenance - Spare Parts","190551982","18/01/2019","Fleet Services","Fleet Management","R3009"
"Wolverhampton City Council","http://opendatacommunities.org/id/metropolitan-district-council/wolverhampton","705183","Lodge Tyre Co.Limited","PE005643","66.00","Vehicle Maintenance - Spare Parts","190551982","18/01/2019","Fleet Services","Fleet Management","R3009"
"Wolverhampton City Council","http://opendatacommunities.org/id/metropolitan-district-council/wolverhampton","705183","Lodge Tyre Co.Limited","PE005643","120.00","Vehicle Maintenance - Spare Parts","190551982","18/01/2019","Fleet Services","Fleet Management","R3009"
"Wolverhampton City Council","http://opendatacommunities.org/id/metropolitan-district-council/wolverhampton","705183","Lodge Tyre Co.Limited","PE005643","15.00","Vehicle Maintenance - Spare Parts","190551982","18/01/2019","Fleet Services","Fleet Management","R3009"
"Wolverhampton City Council","http://opendatacommunities.org/id/metropolitan-district-council/wolverhampton","705183","Lodge Tyre Co.Limited","PE005643","30.00","Vehicle Maintenance - Spare Parts","190551982","18/01/2019","Fleet Services","Fleet Management","R3009"
"Wolverhampton City Council","http://opendatacommunities.org/id/metropolitan-district-council/wolverhampton","705183","Lodge Tyre Co.Limited","PE005643","39.00","Vehicle Maintenance - Spare Parts","190551982","18/01/2019","Fleet Services","Fleet Management","R3009"
"Wolverhampton City Council","http://opendatacommunities.org/id/metropolitan-district-council/wolverhampton","705183","Lodge Tyre Co.Limited","PE005643","57.50","Vehicle Maintenance - Spare Parts","190551982","18/01/2019","Fleet Services","Fleet Management","R3009"
"Wolverhampton City Council","http://opendatacommunities.org/id/metropolitan-district-council/wolverhampton","705183","Lodge Tyre Co.Limited","PE005643","3.00","Vehicle Maintenance - Spare Parts","190551982","18/01/2019","Fleet Services","Fleet Management","R3009"
"Wolverhampton City Council","http://opendatacommunities.org/id/metropolitan-district-council/wolverhampton","705183","Lodge Tyre Co.Limited","PE005643","30.00","Vehicle Maintenance - Spare Parts","190551982","18/01/2019","Fleet Services","Fleet Management","R3009"
"Wolverhampton City Council","http://opendatacommunities.org/id/metropolitan-district-council/wolverhampton","705210","Low Hill Community Association","418","500.00","Room Hire","130239866","09/01/2019","Skills","Employment Programmes","R2201"
"Wolverhampton City Council","http://opendatacommunities.org/id/metropolitan-district-council/wolverhampton","705210","Low Hill Community Association","416","500.00","Room Hire","130239709","09/01/2019","Skills","Employment Programmes","R2201"
"Wolverhampton City Council","http://opendatacommunities.org/id/metropolitan-district-council/wolverhampton","705274","M.K.G. (Food Products) Limited","128289","113.49","Provisions (Resale)","130239873","30/01/2019","Visitor Economy","Art Gallery Tea Room","R4102"
"Wolverhampton City Council","http://opendatacommunities.org/id/metropolitan-district-council/wolverhampton","705274","M.K.G. (Food Products) Limited","125840","342.43","Provisions (Resale)","130239868","30/01/2019","Visitor Economy","Bantock - Tea Rooms","R4102"
"Wolverhampton City Council","http://opendatacommunities.org/id/metropolitan-district-council/wolverhampton","705274","M.K.G. (Food Products) Limited","110144","13.99","Provisions (Resale)","130238381","30/01/2019","Visitor Economy","Art Gallery Tea Room","R4102"
"Wolverhampton City Council","http://opendatacommunities.org/id/metropolitan-district-council/wolverhampton","705274","M.K.G. (Food Products) Limited","110144","172.98","Provisions (Resale)","130238381","30/01/2019","Visitor Economy","Art Gallery Tea Room","R4102"
"Wolverhampton City Council","http://opendatacommunities.org/id/metropolitan-district-council/wolverhampton","705274","M.K.G. (Food Products) Limited","124527","228.15","Provisions (Resale)","130237463","02/01/2019","Visitor Economy","Bantock - Tea Rooms","R4102"
"Wolverhampton City Council","http://opendatacommunities.org/id/metropolitan-district-council/wolverhampton","705274","M.K.G. (Food Products) Limited","109300","257.15","Provisions (Resale)","130238378","11/01/2019","Visitor Economy","Bantock - Tea Rooms","R4102"
"Wolverhampton City Council","http://opendatacommunities.org/id/metropolitan-district-council/wolverhampton","705274","M.K.G. (Food Products) Limited","125385","131.46","Provisions (Resale)","130239867","11/01/2019","Visitor Economy","Art Gallery Tea Room","R4102"
"Wolverhampton City Council","http://opendatacommunities.org/id/metropolitan-district-council/wolverhampton","705274","M.K.G. (Food Products) Limited","110143","243.99","Provisions (Resale)","130238380","11/01/2019","Visitor Economy","Bantock - Tea Rooms","R4102"
"Wolverhampton City Council","http://opendatacommunities.org/id/metropolitan-district-council/wolverhampton","705274","M.K.G. (Food Products) Limited","120426","170.93","Provisions (Resale)","130241476","25/01/2019","Visitor Economy","Art Gallery Tea Room","R4102"
"Wolverhampton City Council","http://opendatacommunities.org/id/metropolitan-district-council/wolverhampton","705274","M.K.G. (Food Products) Limited","120065","178.06","Provisions (Resale)","130241474","25/01/2019","Visitor Economy","Art Gallery Tea Room","R4102"
"Wolverhampton City Council","http://opendatacommunities.org/id/metropolitan-district-council/wolverhampton","705274","M.K.G. (Food Products) Limited","120845","226.12","Provisions (Resale)","130241475","25/01/2019","Visitor Economy","Art Gallery Tea Room","R4102"
"Wolverhampton City Council","http://opendatacommunities.org/id/metropolitan-district-council/wolverhampton","705274","M.K.G. (Food Products) Limited","120844","350.48","Provisions (Resale)","130241482","25/01/2019","Visitor Economy","Art Gallery Tea Room","R4102"
"Wolverhampton City Council","http://opendatacommunities.org/id/metropolitan-district-council/wolverhampton","705274","M.K.G. (Food Products) Limited","127642","136.47","Provisions (Resale)","130239210","23/01/2019","Visitor Economy","Art Gallery Tea Room","R4102"
"Wolverhampton City Council","http://opendatacommunities.org/id/metropolitan-district-council/wolverhampton","705274","M.K.G. (Food Products) Limited","128288","177.81","Provisions (Resale)","130239872","30/01/2019","Visitor Economy","Bantock - Tea Rooms","R4102"
"Wolverhampton City Council","http://opendatacommunities.org/id/metropolitan-district-council/wolverhampton","705274","M.K.G. (Food Products) Limited","177988","-13.99","Provisions (Resale)","130229056","16/01/2019","Visitor Economy","Bantock - Tea Rooms","R4102"
"Wolverhampton City Council","http://opendatacommunities.org/id/metropolitan-district-council/wolverhampton","705274","M.K.G. (Food Products) Limited","113058","133.96","Provisions (Resale)","130238382","16/01/2019","Visitor Economy","Bantock - Tea Rooms","R4102"
"Wolverhampton City Council","http://opendatacommunities.org/id/metropolitan-district-council/wolverhampton","705274","M.K.G. (Food Products) Limited","113454","179.33","Provisions (Resale)","130238384","16/01/2019","Visitor Economy","Bantock - Tea Rooms","R4102"
"Wolverhampton City Council","http://opendatacommunities.org/id/metropolitan-district-council/wolverhampton","705274","M.K.G. (Food Products) Limited","178279","-67.11","Provisions (Resale)","130229057","16/01/2019","Visitor Economy","Bantock - Tea Rooms","R4102"
"Wolverhampton City Council","http://opendatacommunities.org/id/metropolitan-district-council/wolverhampton","705274","M.K.G. (Food Products) Limited","126637","146.02","Provisions (Resale)","130239870","16/01/2019","Visitor Economy","Art Gallery Tea Room","R4102"
"Wolverhampton City Council","http://opendatacommunities.org/id/metropolitan-district-council/wolverhampton","705274","M.K.G. (Food Products) Limited","126634","188.71","Provisions (Resale)","130239869","16/01/2019","Visitor Economy","Bantock - Tea Rooms","R4102"
"Wolverhampton City Council","http://opendatacommunities.org/id/metropolitan-district-council/wolverhampton","705274","M.K.G. (Food Products) Limited","127067","265.30","Provisions (Resale)","130239871","16/01/2019","Visitor Economy","Bantock - Tea Rooms","R4102"
"Wolverhampton City Council","http://opendatacommunities.org/id/metropolitan-district-council/wolverhampton","705274","M.K.G. (Food Products) Limited","109707","142.24","Provisions (Resale)","130241564","30/01/2019","Visitor Economy","Bantock - Tea Rooms","R4102"
"Wolverhampton City Council","http://opendatacommunities.org/id/metropolitan-district-council/wolverhampton","705281","Machine Mart Limited","1029389","62.99","Materials","190551901","18/01/2019","Fleet Services","Fleet Management","R4007"
"Wolverhampton City Council","http://opendatacommunities.org/id/metropolitan-district-council/wolverhampton","705281","Machine Mart Limited","1029389","15.99","Materials","190551901","18/01/2019","Fleet Services","Fleet Management","R4007"
"Wolverhampton City Council","http://opendatacommunities.org/id/metropolitan-district-council/wolverhampton","705281","Machine Mart Limited","1029389","64.99","Materials","190551901","18/01/2019","Fleet Services","Fleet Management","R4007"
"Wolverhampton City Council","http://opendatacommunities.org/id/metropolitan-district-council/wolverhampton","705281","Machine Mart Limited","03599","74.99","Materials","190553886","23/01/2019","Fleet Services","Fleet Management","R4007"
"Wolverhampton City Council","http://opendatacommunities.org/id/metropolitan-district-council/wolverhampton","705281","Machine Mart Limited","03598","-49.98","Materials","190553885","23/01/2019","Fleet Services","Fleet Management","R4007"
"Wolverhampton City Council","http://opendatacommunities.org/id/metropolitan-district-council/wolverhampton","705303","Mail Solutions UK Limited","375845","290.70","Printing","130240704","23/01/2019","ICTS","Document Centre - General","R4300"
"Wolverhampton City Council","http://opendatacommunities.org/id/metropolitan-district-council/wolverhampton","705303","Mail Solutions UK Limited","375302","567.50","Printing","130240950","23/01/2019","ICTS","Document Centre - General","R4300"
"Wolverhampton City Council","http://opendatacommunities.org/id/metropolitan-district-council/wolverhampton","705303","Mail Solutions UK Limited","374823","101.91","Printing","130239874","16/01/2019","ICTS","Document Centre - General","R4300"
"Wolverhampton City Council","http://opendatacommunities.org/id/metropolitan-district-council/wolverhampton","705367","Marstons PLC","CLAREGATE1","471.45","Catering","130240506","25/01/2019","Carer Support","Carers Support","R4100"
"Wolverhampton City Council","http://opendatacommunities.org/id/metropolitan-district-council/wolverhampton","705367","Marstons PLC","98419526","231.32","Provisions (Resale)","130240705","18/01/2019","Visitor Economy","The Little Civic","R4102"
"Wolverhampton City Council","http://opendatacommunities.org/id/metropolitan-district-council/wolverhampton","705367","Marstons PLC","800974159","19,055.20","Provisions (Resale)","130241246","30/01/2019","Visitor Economy","ALV - Darts & Comedy","R4102"
"Wolverhampton City Council","http://opendatacommunities.org/id/metropolitan-district-council/wolverhampton","705367","Marstons PLC","98419528","0.01","Provisions (Resale)","130239115","16/01/2019","Visitor Economy","The Little Civic","R4102"
"Wolverhampton City Council","http://opendatacommunities.org/id/metropolitan-district-council/wolverhampton","705367","Marstons PLC","98419528","39.11","Provisions (Resale)","130239115","16/01/2019","Visitor Economy","The Little Civic","R4102"
"Wolverhampton City Council","http://opendatacommunities.org/id/metropolitan-district-council/wolverhampton","705367","Marstons PLC","98217233","2,655.50","Provisions (Resale)","130240504","16/01/2019","Visitor Economy","The Little Civic","R4102"
"Wolverhampton City Council","http://opendatacommunities.org/id/metropolitan-district-council/wolverhampton","705367","Marstons PLC","98419527","83.97","Provisions (Resale)","130238978","16/01/2019","Visitor Economy","The Little Civic","R4102"
"Wolverhampton City Council","http://opendatacommunities.org/id/metropolitan-district-council/wolverhampton","705367","Marstons PLC","98342438","6,829.64","Provisions (Resale)","130240505","16/01/2019","Visitor Economy","ALV - Darts & Comedy","R4102"
"Wolverhampton City Council","http://opendatacommunities.org/id/metropolitan-district-council/wolverhampton","705367","Marstons PLC","98342438","0.43","Provisions (Resale)","130240505","16/01/2019","Visitor Economy","ALV - Darts & Comedy","R4102"
"Wolverhampton City Council","http://opendatacommunities.org/id/metropolitan-district-council/wolverhampton","705367","Marstons PLC","98342438","0.25","Provisions (Resale)","130240505","16/01/2019","Visitor Economy","ALV - Darts & Comedy","R4102"
"Wolverhampton City Council","http://opendatacommunities.org/id/metropolitan-district-council/wolverhampton","705367","Marstons PLC","98424639","409.98","Provisions (Resale)","130238979","16/01/2019","Visitor Economy","The Little Civic","R4102"
"Wolverhampton City Council","http://opendatacommunities.org/id/metropolitan-district-council/wolverhampton","705367","Marstons PLC","98424638","1,342.30","Provisions (Resale)","130239116","16/01/2019","Visitor Economy","The Little Civic","R4102"
"Wolverhampton City Council","http://opendatacommunities.org/id/metropolitan-district-council/wolverhampton","705367","Marstons PLC","98397695","338.99","Provisions (Resale)","130237871","02/01/2019","Visitor Economy","The Little Civic","R4102"
"Wolverhampton City Council","http://opendatacommunities.org/id/metropolitan-district-council/wolverhampton","705407","MCC Computer Store","4054602 - BACS Rejection","11.00","Computing - Purchase of Hardware","130239282","04/01/2019","Schools","St Matthias School","R4530"
"Wolverhampton City Council","http://opendatacommunities.org/id/metropolitan-district-council/wolverhampton","705407","MCC Computer Store","4054541 - BACS Rejection","871.50","Computing - Purchase of Hardware","130239281","04/01/2019","Schools","St Matthias School","R4530"
"Wolverhampton City Council","http://opendatacommunities.org/id/metropolitan-district-council/wolverhampton","705407","MCC Computer Store","4059796 - BACS Rejection","11.00","Computing - Purchase of Hardware","130242298","30/01/2019","Schools","St Matthias School","R4530"
"Wolverhampton City Council","http://opendatacommunities.org/id/metropolitan-district-council/wolverhampton","705438","Mel Research Limited","260702","3,450.00","Services - Professional Fees","130239377","16/01/2019","Revenues & Benefits","Revenues","R4400"
"Wolverhampton City Council","http://opendatacommunities.org/id/metropolitan-district-council/wolverhampton","705453","Mercian Shutters Limited","41228","145.00","R&M - Departmental planned (external)","130239534","09/01/2019","Maintenance Programme","Centralised R&M","R2001"
"Wolverhampton City Council","http://opendatacommunities.org/id/metropolitan-district-council/wolverhampton","705484","Service Industry Solutions Michael Lay","29","275.00","Training Expenses","130241248","25/01/2019","Children & Young People In Care","Fostering Team & Allowances","R1650"
"Wolverhampton City Council","http://opendatacommunities.org/id/metropolitan-district-council/wolverhampton","705484","Service Industry Solutions Michael Lay","0024","1,012.50","TPP - Maintenance Contractor - General","190555181","30/01/2019","Transportation","Cycling Schemes - Bikeability","R5720"
"Wolverhampton City Council","http://opendatacommunities.org/id/metropolitan-district-council/wolverhampton","705486","Michael Page Int Recruitment Limited","6411237","2,999.98","Agency Staff","130239535","16/01/2019","Corporate Asset Management","Strategic Asset Management Team","R1100"
"Wolverhampton City Council","http://opendatacommunities.org/id/metropolitan-district-council/wolverhampton","705486","Michael Page Int Recruitment Limited","6411237","0.02","Agency Staff","130239535","16/01/2019","Corporate Asset Management","Strategic Asset Management Team","R1100"
"Wolverhampton City Council","http://opendatacommunities.org/id/metropolitan-district-council/wolverhampton","705486","Michael Page Int Recruitment Limited","6413689","2,450.00","Agency Staff","130239536","16/01/2019","Capital Programme","Capital Programme Team","R1100"
"Wolverhampton City Council","http://opendatacommunities.org/id/metropolitan-district-council/wolverhampton","705486","Michael Page Int Recruitment Limited","6395310","2,450.00","Agency Staff","130235010","16/01/2019","Capital Programme","Capital Programme Team","R1100"
"Wolverhampton City Council","http://opendatacommunities.org/id/metropolitan-district-council/wolverhampton","705486","Michael Page Int Recruitment Limited","6404994","2,450.00","Agency Staff","130236645","16/01/2019","Capital Programme","Capital Programme Team","R1100"
"Wolverhampton City Council","http://opendatacommunities.org/id/metropolitan-district-council/wolverhampton","705486","Michael Page Int Recruitment Limited","6408250","2,450.00","Agency Staff","130237675","16/01/2019","Capital Programme","Capital Programme Team","R1100"
"Wolverhampton City Council","http://opendatacommunities.org/id/metropolitan-district-council/wolverhampton","705486","Michael Page Int Recruitment Limited","6415147","3,000.00","Agency Staff","130239537","18/01/2019","Corporate Asset Management","Strategic Asset Management Team","R1100"
"Wolverhampton City Council","http://opendatacommunities.org/id/metropolitan-district-council/wolverhampton","705486","Michael Page Int Recruitment Limited","6401851","2,450.00","Agency Staff","130236643","18/01/2019","Capital Programme","Capital Programme Team","R1100"
"Wolverhampton City Council","http://opendatacommunities.org/id/metropolitan-district-council/wolverhampton","705496","Midcounties Co-Operative Funeralcare","080/70076112","1,361.00","Services - Professional Fees","130239538","09/01/2019","Safeguarding","Court of Protection, Funerals and Protection of Property","R4400"
"Wolverhampton City Council","http://opendatacommunities.org/id/metropolitan-district-council/wolverhampton","705519","Midland Motascreens Limited","16759","410.00","Insurance - General","130240708","18/01/2019","Audit Services","Motor Vehicles","R4962"
"Wolverhampton City Council","http://opendatacommunities.org/id/metropolitan-district-council/wolverhampton","705519","Midland Motascreens Limited","16769","265.00","Services - Professional Fees","190555476","30/01/2019","Fleet Services","Fleet Management","R4400"
"Wolverhampton City Council","http://opendatacommunities.org/id/metropolitan-district-council/wolverhampton","705519","Midland Motascreens Limited","16759","250.00","Insurance - General","130240708","18/01/2019","Schools","Pupil Referral Units - Mid Point","R4962"
"Wolverhampton City Council","http://opendatacommunities.org/id/metropolitan-district-council/wolverhampton","705519","Midland Motascreens Limited","16758","490.00","Insurance - General","130240707","18/01/2019","Audit Services","Motor Vehicles","R4962"
"Wolverhampton City Council","http://opendatacommunities.org/id/metropolitan-district-council/wolverhampton","705519","Midland Motascreens Limited","16758","250.00","Insurance - General","130240707","18/01/2019","Schools","Pupil Referral Units - Mid Point","R4962"
"Wolverhampton City Council","http://opendatacommunities.org/id/metropolitan-district-council/wolverhampton","705519","Midland Motascreens Limited","16763","45.00","Services - Professional Fees","190555475","30/01/2019","Fleet Services","Fleet Management","R4400"
"Wolverhampton City Council","http://opendatacommunities.org/id/metropolitan-district-council/wolverhampton","705520","Midland News Association Limited","I7565810","360.00","Marketing \ Non-staff advertising","130237873","02/01/2019","Markets","Wolverhampton Indoor and Open Market","R4317"
"Wolverhampton City Council","http://opendatacommunities.org/id/metropolitan-district-council/wolverhampton","705520","Midland News Association Limited","I7565157","272.16","Marketing \ Non-staff advertising","130237872","02/01/2019","Enterprise","Economic Development","R4317"
"Wolverhampton City Council","http://opendatacommunities.org/id/metropolitan-district-council/wolverhampton","705520","Midland News Association Limited","I7565157","136.08","Marketing \ Non-staff advertising","130237872","02/01/2019","Visitor Economy","Christmas Festivities","R4317"
"Wolverhampton City Council","http://opendatacommunities.org/id/metropolitan-district-council/wolverhampton","705520","Midland News Association Limited","I7565157","136.08","Marketing \ Non-staff advertising","130237872","02/01/2019","Markets","Wolverhampton Indoor and Open Market","R4317"
"Wolverhampton City Council","http://opendatacommunities.org/id/metropolitan-district-council/wolverhampton","705520","Midland News Association Limited","I7565958","222.62","Marketing \ Non-staff advertising","130237874","02/01/2019","Planning","Planning","R4317"
"Wolverhampton City Council","http://opendatacommunities.org/id/metropolitan-district-council/wolverhampton","705520","Midland News Association Limited","I7523207","5,144.88","Marketing \ Non-staff advertising","130239118","02/01/2019","Operation & Maintenance of Existing Network","UTC - Utilities Organisations","R4317"
"Wolverhampton City Council","http://opendatacommunities.org/id/metropolitan-district-council/wolverhampton","705520","Midland News Association Limited","I7572602","296.82","Marketing \ Non-staff advertising","130239131","16/01/2019","Planning","Planning","R4317"
"Wolverhampton City Council","http://opendatacommunities.org/id/metropolitan-district-council/wolverhampton","705520","Midland News Association Limited","I7567443","378.08","Marketing \ Non-staff advertising","130239122","09/01/2019","Corporate Communications","Communications & Marketing - General","R4317"
"Wolverhampton City Council","http://opendatacommunities.org/id/metropolitan-district-council/wolverhampton","705520","Midland News Association Limited","I7568080","222.62","Marketing \ Non-staff advertising","130239124","09/01/2019","Planning","Planning","R4317"
"Wolverhampton City Council","http://opendatacommunities.org/id/metropolitan-district-council/wolverhampton","705520","Midland News Association Limited","I7570224","756.16","Marketing \ Non-staff advertising","130239125","09/01/2019","Corporate Communications","Communications & Marketing - General","R4317"
"Wolverhampton City Council","http://opendatacommunities.org/id/metropolitan-district-council/wolverhampton","705520","Midland News Association Limited","I7572074","544.16","Marketing \ Non-staff advertising","130239129","16/01/2019","Operation & Maintenance of Existing Network","UTC - Utilities Organisations","R4317"
"Wolverhampton City Council","http://opendatacommunities.org/id/metropolitan-district-council/wolverhampton","705520","Midland News Association Limited","I7572491","453.60","Marketing \ Non-staff advertising","130239130","16/01/2019","Corporate Communications","Communications & Marketing - General","R4317"
"Wolverhampton City Council","http://opendatacommunities.org/id/metropolitan-district-council/wolverhampton","705520","Midland News Association Limited","I7574894","180.14","Marketing \ Non-staff advertising","130239711","30/01/2019","Leisure Services","WV Active Marketing","R4317"
"Wolverhampton City Council","http://opendatacommunities.org/id/metropolitan-district-council/wolverhampton","705520","Midland News Association Limited","I7578672","650.00","Marketing \ Non-staff advertising","130240083","30/01/2019","Leisure Services","WV Active Marketing","R4317"
"Wolverhampton City Council","http://opendatacommunities.org/id/metropolitan-district-council/wolverhampton","705520","Midland News Association Limited","I7578866","2,226.16","Marketing \ Non-staff advertising","130240085","30/01/2019","Operation & Maintenance of Existing Network","UTC - Utilities Organisations","R4317"
"Wolverhampton City Council","http://opendatacommunities.org/id/metropolitan-district-council/wolverhampton","705520","Midland News Association Limited","I7574941","890.44","Marketing \ Non-staff advertising","130239998","30/01/2019","Operation & Maintenance of Existing Network","UTC - Utilities Organisations","R4317"
"Wolverhampton City Council","http://opendatacommunities.org/id/metropolitan-district-council/wolverhampton","705520","Midland News Association Limited","I7578673","1,000.00","Marketing \ Non-staff advertising","130240084","30/01/2019","Leisure Services","WV Active Marketing","R4317"
"Wolverhampton City Council","http://opendatacommunities.org/id/metropolitan-district-council/wolverhampton","705520","Midland News Association Limited","I7505254","445.22","Marketing \ Non-staff advertising","130239710","09/01/2019","Operation & Maintenance of Existing Network","UTC - Utilities Organisations","R4317"
"Wolverhampton City Council","http://opendatacommunities.org/id/metropolitan-district-council/wolverhampton","705520","Midland News Association Limited","I7567096","162.13","Marketing \ Non-staff advertising","130239119","09/01/2019","Visitor Economy","Christmas Festivities","R4317"
"Wolverhampton City Council","http://opendatacommunities.org/id/metropolitan-district-council/wolverhampton","705520","Midland News Association Limited","I7567096","324.26","Marketing \ Non-staff advertising","130239119","09/01/2019","Markets","Wolverhampton Indoor and Open Market","R4317"
"Wolverhampton City Council","http://opendatacommunities.org/id/metropolitan-district-council/wolverhampton","705520","Midland News Association Limited","I7570225","378.08","Marketing \ Non-staff advertising","130239126","09/01/2019","Corporate Communications","Communications & Marketing - General","R4317"
"Wolverhampton City Council","http://opendatacommunities.org/id/metropolitan-district-council/wolverhampton","705520","Midland News Association Limited","I7567444","378.08","Marketing \ Non-staff advertising","130239123","09/01/2019","Corporate Communications","Communications & Marketing - General","R4317"
"Wolverhampton City Council","http://opendatacommunities.org/id/metropolitan-district-council/wolverhampton","705520","Midland News Association Limited","I7510802","395.76","Marketing \ Non-staff advertising","130239117","09/01/2019","Operation & Maintenance of Existing Network","UTC - Utilities Organisations","R4317"
"Wolverhampton City Council","http://opendatacommunities.org/id/metropolitan-district-council/wolverhampton","705520","Midland News Association Limited","I7567442","756.16","Marketing \ Non-staff advertising","130239121","09/01/2019","Corporate Communications","Communications & Marketing - General","R4317"
"Wolverhampton City Council","http://opendatacommunities.org/id/metropolitan-district-council/wolverhampton","705520","Midland News Association Limited","I7570226","378.08","Marketing \ Non-staff advertising","130239127","09/01/2019","Corporate Communications","Communications & Marketing - General","R4317"
"Wolverhampton City Council","http://opendatacommunities.org/id/metropolitan-district-council/wolverhampton","705520","Midland News Association Limited","I7567441","162.13","Marketing \ Non-staff advertising","130239120","09/01/2019","Enterprise","Economic Development","R4317"
"Wolverhampton City Council","http://opendatacommunities.org/id/metropolitan-district-council/wolverhampton","705520","Midland News Association Limited","I7570820","222.62","Marketing \ Non-staff advertising","130239128","09/01/2019","Planning","Planning","R4317"
"Wolverhampton City Council","http://opendatacommunities.org/id/metropolitan-district-council/wolverhampton","705525","Midland Quarry Products Limited","1980625060","777.58","Materials","130238290","09/01/2019","Highways Maintenance","Patching","R4007"
"Wolverhampton City Council","http://opendatacommunities.org/id/metropolitan-district-council/wolverhampton","705525","Midland Quarry Products Limited","1980627599","1,246.11","Materials","130239384","18/01/2019","Highways Maintenance","Patching","R4007"
"Wolverhampton City Council","http://opendatacommunities.org/id/metropolitan-district-council/wolverhampton","705525","Midland Quarry Products Limited","1980629360","476.48","Materials","130240394","30/01/2019","Highways Maintenance","Patching","R4007"
"Wolverhampton City Council","http://opendatacommunities.org/id/metropolitan-district-council/wolverhampton","705525","Midland Quarry Products Limited","1980629359","1,354.99","Materials","130240393","30/01/2019","Highways Maintenance","Patching","R4007"
"Wolverhampton City Council","http://opendatacommunities.org/id/metropolitan-district-council/wolverhampton","705525","Midland Quarry Products Limited","1980628347","221.38","Materials","130239133","16/01/2019","Highways Maintenance","Patching","R4007"
"Wolverhampton City Council","http://opendatacommunities.org/id/metropolitan-district-council/wolverhampton","705525","Midland Quarry Products Limited","1980628346","2,371.15","Materials","130239132","16/01/2019","Highways Maintenance","Patching","R4007"
"Wolverhampton City Council","http://opendatacommunities.org/id/metropolitan-district-council/wolverhampton","705525","Midland Quarry Products Limited","1980627600","223.21","Materials","130239385","18/01/2019","Highways Maintenance","Patching","R4007"
"Wolverhampton City Council","http://opendatacommunities.org/id/metropolitan-district-council/wolverhampton","705525","Midland Quarry Products Limited","1980623601","84.16","Materials","130239379","18/01/2019","Highways Maintenance","Patching","R4007"
"Wolverhampton City Council","http://opendatacommunities.org/id/metropolitan-district-council/wolverhampton","705525","Midland Quarry Products Limited","1980625059","329.33","Materials","130239381","18/01/2019","Highways Maintenance","Patching","R4007"
"Wolverhampton City Council","http://opendatacommunities.org/id/metropolitan-district-council/wolverhampton","705525","Midland Quarry Products Limited","1980623600","1,669.34","Materials","130239378","18/01/2019","Highways Maintenance","Patching","R4007"
"Wolverhampton City Council","http://opendatacommunities.org/id/metropolitan-district-council/wolverhampton","705525","Midland Quarry Products Limited","1980626002","1,302.32","Materials","130239383","18/01/2019","Highways Maintenance","Patching","R4007"
"Wolverhampton City Council","http://opendatacommunities.org/id/metropolitan-district-council/wolverhampton","705525","Midland Quarry Products Limited","1980622713","183.14","Materials","130237682","02/01/2019","Highways Maintenance","Patching","R4007"
"Wolverhampton City Council","http://opendatacommunities.org/id/metropolitan-district-council/wolverhampton","705525","Midland Quarry Products Limited","1980625058","2,733.03","Materials","130239380","18/01/2019","Highways Maintenance","Patching","R4007"
"Wolverhampton City Council","http://opendatacommunities.org/id/metropolitan-district-council/wolverhampton","705525","Midland Quarry Products Limited","1980622711","6.24","Materials","130237464","02/01/2019","Highways Maintenance","Patching","R4007"
"Wolverhampton City Council","http://opendatacommunities.org/id/metropolitan-district-council/wolverhampton","705525","Midland Quarry Products Limited","1980622712","1,916.80","Materials","130237681","02/01/2019","Highways Maintenance","Patching","R4007"
"Wolverhampton City Council","http://opendatacommunities.org/id/metropolitan-district-council/wolverhampton","705525","Midland Quarry Products Limited","1980626001","627.29","Materials","130239382","18/01/2019","Highways Maintenance","Patching","R4007"
"Wolverhampton City Council","http://opendatacommunities.org/id/metropolitan-district-council/wolverhampton","705534","Midlands Truck & Van Limited","88448274","11.73","Equipment - Purchase","190551211","16/01/2019","Fleet Services","Fleet Management","R4000"
"Wolverhampton City Council","http://opendatacommunities.org/id/metropolitan-district-council/wolverhampton","705534","Midlands Truck & Van Limited","88448463","11.07","Equipment - Purchase","190551212","16/01/2019","Fleet Services","Fleet Management","R4000"
"Wolverhampton City Council","http://opendatacommunities.org/id/metropolitan-district-council/wolverhampton","705534","Midlands Truck & Van Limited","88448463","63.90","Equipment - Purchase","190551212","16/01/2019","Fleet Services","Fleet Management","R4000"
"Wolverhampton City Council","http://opendatacommunities.org/id/metropolitan-district-council/wolverhampton","705534","Midlands Truck & Van Limited","88448463","22.80","Equipment - Purchase","190551212","16/01/2019","Fleet Services","Fleet Management","R4000"
"Wolverhampton City Council","http://opendatacommunities.org/id/metropolitan-district-council/wolverhampton","705534","Midlands Truck & Van Limited","88448463","3.65","Equipment - Purchase","190551212","16/01/2019","Fleet Services","Fleet Management","R4000"
"Wolverhampton City Council","http://opendatacommunities.org/id/metropolitan-district-council/wolverhampton","705534","Midlands Truck & Van Limited","83627171","3.50","Services - Professional Fees","190548918","11/01/2019","Fleet Services","Fleet Management","R4400"
"Wolverhampton City Council","http://opendatacommunities.org/id/metropolitan-district-council/wolverhampton","705534","Midlands Truck & Van Limited","83627171","31.50","Services - Professional Fees","190548918","11/01/2019","Fleet Services","Fleet Management","R4400"
"Wolverhampton City Council","http://opendatacommunities.org/id/metropolitan-district-council/wolverhampton","705534","Midlands Truck & Van Limited","83627171","73.50","Services - Professional Fees","190548918","11/01/2019","Fleet Services","Fleet Management","R4400"
"Wolverhampton City Council","http://opendatacommunities.org/id/metropolitan-district-council/wolverhampton","705534","Midlands Truck & Van Limited","83627171","11.70","Services - Professional Fees","190548918","11/01/2019","Fleet Services","Fleet Management","R4400"
"Wolverhampton City Council","http://opendatacommunities.org/id/metropolitan-district-council/wolverhampton","705534","Midlands Truck & Van Limited","83627171","105.00","Services - Professional Fees","190548918","11/01/2019","Fleet Services","Fleet Management","R4400"
"Wolverhampton City Council","http://opendatacommunities.org/id/metropolitan-district-council/wolverhampton","705534","Midlands Truck & Van Limited","83627171","2.55","Services - Professional Fees","190548918","11/01/2019","Fleet Services","Fleet Management","R4400"
"Wolverhampton City Council","http://opendatacommunities.org/id/metropolitan-district-council/wolverhampton","705534","Midlands Truck & Van Limited","83625965","73.50","Services - Professional Fees","190548917","11/01/2019","Fleet Services","Fleet Management","R4400"
"Wolverhampton City Council","http://opendatacommunities.org/id/metropolitan-district-council/wolverhampton","705534","Midlands Truck & Van Limited","83625965","31.50","Services - Professional Fees","190548917","11/01/2019","Fleet Services","Fleet Management","R4400"
"Wolverhampton City Council","http://opendatacommunities.org/id/metropolitan-district-council/wolverhampton","705534","Midlands Truck & Van Limited","83625965","117.70","Services - Professional Fees","190548917","11/01/2019","Fleet Services","Fleet Management","R4400"
"Wolverhampton City Council","http://opendatacommunities.org/id/metropolitan-district-council/wolverhampton","705534","Midlands Truck & Van Limited","88447924","103.55","Equipment - Purchase","190548919","11/01/2019","Fleet Services","Fleet Management","R4000"
"Wolverhampton City Council","http://opendatacommunities.org/id/metropolitan-district-council/wolverhampton","705534","Midlands Truck & Van Limited","83626053","157.50","Services - Professional Fees","190551946","18/01/2019","Fleet Services","Fleet Management","R4400"
"Wolverhampton City Council","http://opendatacommunities.org/id/metropolitan-district-council/wolverhampton","705534","Midlands Truck & Van Limited","83626053","189.60","Services - Professional Fees","190551946","18/01/2019","Fleet Services","Fleet Management","R4400"
"Wolverhampton City Council","http://opendatacommunities.org/id/metropolitan-district-council/wolverhampton","705534","Midlands Truck & Van Limited","83626053","63.00","Services - Professional Fees","190551946","18/01/2019","Fleet Services","Fleet Management","R4400"
"Wolverhampton City Council","http://opendatacommunities.org/id/metropolitan-district-council/wolverhampton","705534","Midlands Truck & Van Limited","88447969","42.30","Equipment - Purchase","190545461","02/01/2019","Fleet Services","Fleet Management","R4000"
"Wolverhampton City Council","http://opendatacommunities.org/id/metropolitan-district-council/wolverhampton","705534","Midlands Truck & Van Limited","83627171","52.50","Services - Professional Fees","190548918","11/01/2019","Fleet Services","Fleet Management","R4400"
"Wolverhampton City Council","http://opendatacommunities.org/id/metropolitan-district-council/wolverhampton","705534","Midlands Truck & Van Limited","83627171","53.00","Services - Professional Fees","190548918","11/01/2019","Fleet Services","Fleet Management","R4400"
"Wolverhampton City Council","http://opendatacommunities.org/id/metropolitan-district-council/wolverhampton","705542","Midwest Electrical Services Limited","I17938","700.94","R&M - Departmental planned (external)","130232831","11/01/2019","Maintenance Programme","Centralised R&M","R2001"
"Wolverhampton City Council","http://opendatacommunities.org/id/metropolitan-district-council/wolverhampton","705542","Midwest Electrical Services Limited","I18693","513.29","R&M - Departmental planned (external)","130238417","11/01/2019","Maintenance Programme","Civic Centre Repairs & Maintenance","R2001"
"Wolverhampton City Council","http://opendatacommunities.org/id/metropolitan-district-council/wolverhampton","705542","Midwest Electrical Services Limited","I18675","234.00","R&M - Departmental planned (external)","130238400","11/01/2019","Maintenance Programme","Centralised R&M","R2001"
"Wolverhampton City Council","http://opendatacommunities.org/id/metropolitan-district-council/wolverhampton","705542","Midwest Electrical Services Limited","I18677","48.16","R&M - Departmental planned (external)","130238402","11/01/2019","Maintenance Programme","Centralised R&M","R2001"
"Wolverhampton City Council","http://opendatacommunities.org/id/metropolitan-district-council/wolverhampton","705542","Midwest Electrical Services Limited","I18705","44.38","R&M - Departmental planned (external)","130238429","11/01/2019","Maintenance Programme","Centralised R&M","R2001"
"Wolverhampton City Council","http://opendatacommunities.org/id/metropolitan-district-council/wolverhampton","705542","Midwest Electrical Services Limited","I18685","39.34","R&M - Departmental planned (external)","130238409","11/01/2019","Maintenance Programme","Centralised R&M","R2001"
"Wolverhampton City Council","http://opendatacommunities.org/id/metropolitan-district-council/wolverhampton","705542","Midwest Electrical Services Limited","I18676","23.38","R&M - Departmental planned (external)","130238401","11/01/2019","Maintenance Programme","Centralised R&M","R2001"
"Wolverhampton City Council","http://opendatacommunities.org/id/metropolitan-district-council/wolverhampton","705542","Midwest Electrical Services Limited","I18826","138.38","R&M - Departmental planned (external)","130238983","18/01/2019","Maintenance Programme","Centralised R&M","R2001"
"Wolverhampton City Council","http://opendatacommunities.org/id/metropolitan-district-council/wolverhampton","705542","Midwest Electrical Services Limited","I18652","76.32","R&M - Departmental planned (external)","130238129","18/01/2019","Maintenance Programme","Centralised R&M","R2001"
"Wolverhampton City Council","http://opendatacommunities.org/id/metropolitan-district-council/wolverhampton","705542","Midwest Electrical Services Limited","I18903","26.80","R&M - Departmental planned (external)","130240710","25/01/2019","Maintenance Programme","Centralised R&M","R2001"
"Wolverhampton City Council","http://opendatacommunities.org/id/metropolitan-district-council/wolverhampton","705542","Midwest Electrical Services Limited","I18907","13,140.50","R&M - Departmental planned (external)","130240711","25/01/2019","Corporate Asset Management","Energy Management","R2001"
"Wolverhampton City Council","http://opendatacommunities.org/id/metropolitan-district-council/wolverhampton","705542","Midwest Electrical Services Limited","I18390","3,817.21","R&M - Departmental planned (external)","130236552","25/01/2019","Maintenance Programme","Centralised R&M","R2001"
"Wolverhampton City Council","http://opendatacommunities.org/id/metropolitan-district-council/wolverhampton","705542","Midwest Electrical Services Limited","I18390","2,716.99","R&M - Departmental planned (external)","130236552","25/01/2019","Maintenance Programme","Centralised R&M","R2001"
"Wolverhampton City Council","http://opendatacommunities.org/id/metropolitan-district-council/wolverhampton","705542","Midwest Electrical Services Limited","I18362","1,750.00","R&M - Departmental planned (external)","130236395","25/01/2019","Maintenance Programme","Centralised R&M","R2001"
"Wolverhampton City Council","http://opendatacommunities.org/id/metropolitan-district-council/wolverhampton","705542","Midwest Electrical Services Limited","I18691","84.94","R&M - Departmental planned (external)","130238415","25/01/2019","Maintenance Programme","Centralised R&M","R2001"
"Wolverhampton City Council","http://opendatacommunities.org/id/metropolitan-district-council/wolverhampton","705542","Midwest Electrical Services Limited","I18689","41.25","R&M - Departmental planned (external)","130238413","25/01/2019","Maintenance Programme","Centralised R&M","R2001"
"Wolverhampton City Council","http://opendatacommunities.org/id/metropolitan-district-council/wolverhampton","705542","Midwest Electrical Services Limited","I18774","37.67","R&M - Departmental planned (external)","130238763","25/01/2019","Maintenance Programme","Centralised R&M","R2001"
"Wolverhampton City Council","http://opendatacommunities.org/id/metropolitan-district-council/wolverhampton","705542","Midwest Electrical Services Limited","I18799","23.38","R&M - Departmental planned (external)","130238863","25/01/2019","Maintenance Programme","Centralised R&M","R2001"
"Wolverhampton City Council","http://opendatacommunities.org/id/metropolitan-district-council/wolverhampton","705542","Midwest Electrical Services Limited","I18775","171.45","R&M - Departmental planned (external)","130238764","25/01/2019","Maintenance Programme","Centralised R&M","R2001"
"Wolverhampton City Council","http://opendatacommunities.org/id/metropolitan-district-council/wolverhampton","705542","Midwest Electrical Services Limited","I18912","200.33","R&M - Departmental planned (external)","130240715","25/01/2019","Maintenance Programme","Centralised R&M","R2001"
"Wolverhampton City Council","http://opendatacommunities.org/id/metropolitan-district-council/wolverhampton","705542","Midwest Electrical Services Limited","I18894","64.54","R&M - Departmental planned (external)","130240225","25/01/2019","Maintenance Programme","Centralised R&M","R2001"
"Wolverhampton City Council","http://opendatacommunities.org/id/metropolitan-district-council/wolverhampton","705542","Midwest Electrical Services Limited","I18881","125.56","R&M - Departmental planned (external)","130240221","25/01/2019","Maintenance Programme","Centralised R&M","R2001"
"Wolverhampton City Council","http://opendatacommunities.org/id/metropolitan-district-council/wolverhampton","705542","Midwest Electrical Services Limited","I18732","392.23","R&M - Departmental planned (external)","130238624","18/01/2019","Facilities Management","Bilston Town Hall","R2001"
"Wolverhampton City Council","http://opendatacommunities.org/id/metropolitan-district-council/wolverhampton","705542","Midwest Electrical Services Limited","I18825","143.21","R&M - Departmental planned (external)","130238982","18/01/2019","Maintenance Programme","Centralised R&M","R2001"
"Wolverhampton City Council","http://opendatacommunities.org/id/metropolitan-district-council/wolverhampton","705542","Midwest Electrical Services Limited","I18801","752.61","R&M - Departmental planned (external)","130238865","18/01/2019","Maintenance Programme","Centralised R&M","R2001"
"Wolverhampton City Council","http://opendatacommunities.org/id/metropolitan-district-council/wolverhampton","705542","Midwest Electrical Services Limited","I18188","6,990.00","R&M - Departmental planned (external)","130234288","11/01/2019","Maintenance Programme","Centralised R&M","R2001"
"Wolverhampton City Council","http://opendatacommunities.org/id/metropolitan-district-council/wolverhampton","705542","Midwest Electrical Services Limited","I18707","28.62","R&M - Departmental planned (external)","130238431","11/01/2019","Facilities Management","Magistrates","R2001"
"Wolverhampton City Council","http://opendatacommunities.org/id/metropolitan-district-council/wolverhampton","705542","Midwest Electrical Services Limited","I18698","23.38","R&M - Departmental planned (external)","130238422","11/01/2019","Maintenance Programme","Centralised R&M","R2001"
"Wolverhampton City Council","http://opendatacommunities.org/id/metropolitan-district-council/wolverhampton","705542","Midwest Electrical Services Limited","I18706","37.67","R&M - Departmental planned (external)","130238430","11/01/2019","Maintenance Programme","Centralised R&M","R2001"
"Wolverhampton City Council","http://opendatacommunities.org/id/metropolitan-district-council/wolverhampton","705542","Midwest Electrical Services Limited","I18679","106.22","R&M - Departmental planned (external)","130238404","11/01/2019","Maintenance Programme","Centralised R&M","R2001"
"Wolverhampton City Council","http://opendatacommunities.org/id/metropolitan-district-council/wolverhampton","705542","Midwest Electrical Services Limited","I18682","68.43","R&M - Departmental planned (external)","130238406","11/01/2019","Maintenance Programme","Centralised R&M","R2001"
"Wolverhampton City Council","http://opendatacommunities.org/id/metropolitan-district-council/wolverhampton","705542","Midwest Electrical Services Limited","I18488","4,368.00","R&M - Departmental planned (external)","130238393","04/01/2019","Maintenance Programme","Centralised R&M","R2001"
"Wolverhampton City Council","http://opendatacommunities.org/id/metropolitan-district-council/wolverhampton","705542","Midwest Electrical Services Limited","I18851","227.65","R&M - Departmental planned (external)","130239714","25/01/2019","Maintenance Programme","Centralised R&M","R2001"
"Wolverhampton City Council","http://opendatacommunities.org/id/metropolitan-district-council/wolverhampton","705542","Midwest Electrical Services Limited","I18865","33.33","R&M - Departmental planned (external)","130239878","25/01/2019","Maintenance Programme","Centralised R&M","R2001"
"Wolverhampton City Council","http://opendatacommunities.org/id/metropolitan-district-council/wolverhampton","705542","Midwest Electrical Services Limited","I18361","10,800.00","R&M - Departmental planned (external)","130236394","25/01/2019","Maintenance Programme","Centralised R&M","R2001"
"Wolverhampton City Council","http://opendatacommunities.org/id/metropolitan-district-council/wolverhampton","705542","Midwest Electrical Services Limited","I18324","6,750.00","R&M - Departmental planned (external)","130236096","25/01/2019","Maintenance Programme","Centralised R&M","R2001"
"Wolverhampton City Council","http://opendatacommunities.org/id/metropolitan-district-council/wolverhampton","705542","Midwest Electrical Services Limited","I17668","3,978.00","R&M - Departmental planned (external)","130241249","25/01/2019","Maintenance Programme","Civic Centre Repairs & Maintenance","R2001"
"Wolverhampton City Council","http://opendatacommunities.org/id/metropolitan-district-council/wolverhampton","705542","Midwest Electrical Services Limited","I17671","1,868.80","R&M - Departmental planned (external)","130230883","25/01/2019","Maintenance Programme","Centralised R&M","R2001"
"Wolverhampton City Council","http://opendatacommunities.org/id/metropolitan-district-council/wolverhampton","705542","Midwest Electrical Services Limited","I17671","56.20","R&M - Departmental planned (external)","130230883","25/01/2019","Maintenance Programme","Centralised R&M","R2001"
"Wolverhampton City Council","http://opendatacommunities.org/id/metropolitan-district-council/wolverhampton","705542","Midwest Electrical Services Limited","I18379","59.82","R&M - Departmental planned (external)","130236550","25/01/2019","Maintenance Programme","Centralised R&M","R2001"
"Wolverhampton City Council","http://opendatacommunities.org/id/metropolitan-district-council/wolverhampton","705542","Midwest Electrical Services Limited","I18690","179.25","R&M - Departmental planned (external)","130238414","25/01/2019","Maintenance Programme","Centralised R&M","R2001"
"Wolverhampton City Council","http://opendatacommunities.org/id/metropolitan-district-council/wolverhampton","705542","Midwest Electrical Services Limited","I18776","292.51","R&M - Departmental planned (external)","130238765","25/01/2019","Maintenance Programme","Centralised R&M","R2001"
"Wolverhampton City Council","http://opendatacommunities.org/id/metropolitan-district-council/wolverhampton","705542","Midwest Electrical Services Limited","I18794","23.38","R&M - Departmental planned (external)","130238858","25/01/2019","Maintenance Programme","Centralised R&M","R2001"
"Wolverhampton City Council","http://opendatacommunities.org/id/metropolitan-district-council/wolverhampton","705542","Midwest Electrical Services Limited","I18893","78.36","R&M - Departmental planned (external)","130240224","25/01/2019","Maintenance Programme","Centralised R&M","R2001"
"Wolverhampton City Council","http://opendatacommunities.org/id/metropolitan-district-council/wolverhampton","705542","Midwest Electrical Services Limited","I18896","23.38","R&M - Departmental planned (external)","130240227","25/01/2019","Maintenance Programme","Centralised R&M","R2001"
"Wolverhampton City Council","http://opendatacommunities.org/id/metropolitan-district-council/wolverhampton","705542","Midwest Electrical Services Limited","I18883","142.86","R&M - Departmental planned (external)","130240223","25/01/2019","Maintenance Programme","Centralised R&M","R2001"
"Wolverhampton City Council","http://opendatacommunities.org/id/metropolitan-district-council/wolverhampton","705542","Midwest Electrical Services Limited","I18674","688.00","R&M - Departmental planned (external)","130238399","11/01/2019","Maintenance Programme","Centralised R&M","R2001"
"Wolverhampton City Council","http://opendatacommunities.org/id/metropolitan-district-council/wolverhampton","705542","Midwest Electrical Services Limited","I18165","77.51","R&M - Departmental planned (external)","130234277","11/01/2019","Maintenance Programme","Centralised R&M","R2001"
"Wolverhampton City Council","http://opendatacommunities.org/id/metropolitan-district-council/wolverhampton","705542","Midwest Electrical Services Limited","I18276","29.23","R&M - Departmental planned (external)","130235147","11/01/2019","Maintenance Programme","Centralised R&M","R2001"
"Wolverhampton City Council","http://opendatacommunities.org/id/metropolitan-district-council/wolverhampton","705542","Midwest Electrical Services Limited","I18699","138.21","R&M - Departmental planned (external)","130238423","11/01/2019","Facilities Management","Magistrates","R2001"
"Wolverhampton City Council","http://opendatacommunities.org/id/metropolitan-district-council/wolverhampton","705542","Midwest Electrical Services Limited","I18694","37.67","R&M - Departmental planned (external)","130238418","11/01/2019","Maintenance Programme","Centralised R&M","R2001"
"Wolverhampton City Council","http://opendatacommunities.org/id/metropolitan-district-council/wolverhampton","705542","Midwest Electrical Services Limited","I18695","23.38","R&M - Departmental planned (external)","130238419","11/01/2019","Maintenance Programme","Centralised R&M","R2001"
"Wolverhampton City Council","http://opendatacommunities.org/id/metropolitan-district-council/wolverhampton","705542","Midwest Electrical Services Limited","I18318","603.30","R&M - Departmental planned (external)","130235697","11/01/2019","Maintenance Programme","Centralised R&M","R2001"
"Wolverhampton City Council","http://opendatacommunities.org/id/metropolitan-district-council/wolverhampton","705542","Midwest Electrical Services Limited","I18702","583.95","R&M - Departmental planned (external)","130238426","11/01/2019","Markets","Bilston Market and Licensed Operations","R2001"
"Wolverhampton City Council","http://opendatacommunities.org/id/metropolitan-district-council/wolverhampton","705542","Midwest Electrical Services Limited","I18684","206.65","R&M - Departmental planned (external)","130238408","11/01/2019","Maintenance Programme","Centralised R&M","R2001"
"Wolverhampton City Council","http://opendatacommunities.org/id/metropolitan-district-council/wolverhampton","705542","Midwest Electrical Services Limited","I18701","24.27","R&M - Departmental planned (external)","130238425","11/01/2019","Maintenance Programme","Centralised R&M","R2001"
"Wolverhampton City Council","http://opendatacommunities.org/id/metropolitan-district-council/wolverhampton","705542","Midwest Electrical Services Limited","I18697","42.77","R&M - Departmental planned (external)","130238421","11/01/2019","Maintenance Programme","Centralised R&M","R2001"
"Wolverhampton City Council","http://opendatacommunities.org/id/metropolitan-district-council/wolverhampton","705542","Midwest Electrical Services Limited","I18678","49.75","R&M - Departmental planned (external)","130238403","11/01/2019","Maintenance Programme","Centralised R&M","R2001"
"Wolverhampton City Council","http://opendatacommunities.org/id/metropolitan-district-council/wolverhampton","705542","Midwest Electrical Services Limited","I18686","32.32","R&M - Departmental planned (external)","130238410","11/01/2019","Maintenance Programme","Centralised R&M","R2001"
"Wolverhampton City Council","http://opendatacommunities.org/id/metropolitan-district-council/wolverhampton","705542","Midwest Electrical Services Limited","I18867","149.67","R&M - Departmental planned (external)","130239880","25/01/2019","Maintenance Programme","Centralised R&M","R2001"
"Wolverhampton City Council","http://opendatacommunities.org/id/metropolitan-district-council/wolverhampton","705542","Midwest Electrical Services Limited","I18380","61.05","R&M - Departmental planned (external)","130236551","25/01/2019","Maintenance Programme","Centralised R&M","R2001"
"Wolverhampton City Council","http://opendatacommunities.org/id/metropolitan-district-council/wolverhampton","705542","Midwest Electrical Services Limited","I18325","7,762.50","R&M - Departmental planned (external)","130236097","25/01/2019","Maintenance Programme","Centralised R&M","R2001"
"Wolverhampton City Council","http://opendatacommunities.org/id/metropolitan-district-council/wolverhampton","705542","Midwest Electrical Services Limited","I18704","106.29","R&M - Departmental planned (external)","130238428","25/01/2019","Maintenance Programme","Centralised R&M","R2001"
"Wolverhampton City Council","http://opendatacommunities.org/id/metropolitan-district-council/wolverhampton","705542","Midwest Electrical Services Limited","I18696","33.33","R&M - Departmental planned (external)","130238420","25/01/2019","Maintenance Programme","Centralised R&M","R2001"
"Wolverhampton City Council","http://opendatacommunities.org/id/metropolitan-district-council/wolverhampton","705542","Midwest Electrical Services Limited","I18688","45.19","R&M - Departmental planned (external)","130238412","25/01/2019","Maintenance Programme","Centralised R&M","R2001"
"Wolverhampton City Council","http://opendatacommunities.org/id/metropolitan-district-council/wolverhampton","705542","Midwest Electrical Services Limited","I18734","156.00","R&M - Departmental planned (external)","130239713","25/01/2019","Maintenance Programme","Centralised R&M","R2001"
"Wolverhampton City Council","http://opendatacommunities.org/id/metropolitan-district-council/wolverhampton","705542","Midwest Electrical Services Limited","I18910","650.00","R&M - Departmental planned (external)","130240713","25/01/2019","Maintenance Programme","Centralised R&M","R2001"
"Wolverhampton City Council","http://opendatacommunities.org/id/metropolitan-district-council/wolverhampton","705542","Midwest Electrical Services Limited","I18866","23.38","R&M - Departmental planned (external)","130239879","25/01/2019","Maintenance Programme","Centralised R&M","R2001"
"Wolverhampton City Council","http://opendatacommunities.org/id/metropolitan-district-council/wolverhampton","705542","Midwest Electrical Services Limited","I18861","25.45","R&M - Departmental planned (external)","130239715","25/01/2019","Maintenance Programme","Centralised R&M","R2001"
"Wolverhampton City Council","http://opendatacommunities.org/id/metropolitan-district-council/wolverhampton","705542","Midwest Electrical Services Limited","I18900","354.95","R&M - Departmental planned (external)","130240396","25/01/2019","Maintenance Programme","Centralised R&M","R2001"
"Wolverhampton City Council","http://opendatacommunities.org/id/metropolitan-district-council/wolverhampton","705542","Midwest Electrical Services Limited","I18490","8,053.20","R&M - Departmental planned (external)","130237013","25/01/2019","Maintenance Programme","Centralised R&M","R2001"
"Wolverhampton City Council","http://opendatacommunities.org/id/metropolitan-district-council/wolverhampton","705542","Midwest Electrical Services Limited","I18545","33.60","R&M - Departmental planned (external)","130237475","25/01/2019","Maintenance Programme","Centralised R&M","R2001"
"Wolverhampton City Council","http://opendatacommunities.org/id/metropolitan-district-council/wolverhampton","705542","Midwest Electrical Services Limited","I18687","118.23","R&M - Departmental planned (external)","130238411","25/01/2019","Maintenance Programme","Centralised R&M","R2001"
"Wolverhampton City Council","http://opendatacommunities.org/id/metropolitan-district-council/wolverhampton","705542","Midwest Electrical Services Limited","I18737","196.58","R&M - Departmental planned (external)","130238627","25/01/2019","Maintenance Programme","Centralised R&M","R2001"
"Wolverhampton City Council","http://opendatacommunities.org/id/metropolitan-district-council/wolverhampton","705542","Midwest Electrical Services Limited","I18729","25.48","R&M - Departmental planned (external)","130239712","25/01/2019","Maintenance Programme","Centralised R&M","R2001"
"Wolverhampton City Council","http://opendatacommunities.org/id/metropolitan-district-council/wolverhampton","705542","Midwest Electrical Services Limited","I18863","23.38","R&M - Departmental planned (external)","130239876","25/01/2019","Maintenance Programme","Centralised R&M","R2001"
"Wolverhampton City Council","http://opendatacommunities.org/id/metropolitan-district-council/wolverhampton","705542","Midwest Electrical Services Limited","I18899","117.07","R&M - Departmental planned (external)","130240395","25/01/2019","Maintenance Programme","Centralised R&M","R2001"
"Wolverhampton City Council","http://opendatacommunities.org/id/metropolitan-district-council/wolverhampton","705542","Midwest Electrical Services Limited","I18895","64.54","R&M - Departmental planned (external)","130240226","25/01/2019","Maintenance Programme","Centralised R&M","R2001"
"Wolverhampton City Council","http://opendatacommunities.org/id/metropolitan-district-council/wolverhampton","705542","Midwest Electrical Services Limited","I18882","47.52","R&M - Departmental planned (external)","130240222","25/01/2019","Maintenance Programme","Centralised R&M","R2001"
"Wolverhampton City Council","http://opendatacommunities.org/id/metropolitan-district-council/wolverhampton","705542","Midwest Electrical Services Limited","I18902","6,140.00","R&M - Departmental planned (external)","130240510","25/01/2019","Maintenance Programme","Centralised R&M","R2001"
"Wolverhampton City Council","http://opendatacommunities.org/id/metropolitan-district-council/wolverhampton","705542","Midwest Electrical Services Limited","I18625","194.44","R&M - Departmental planned (external)","130237884","04/01/2019","Markets","Wolverhampton Indoor and Open Market","R2001"
"Wolverhampton City Council","http://opendatacommunities.org/id/metropolitan-district-council/wolverhampton","705542","Midwest Electrical Services Limited","I18369","1,385.00","R&M - Departmental planned (external)","130236543","09/01/2019","Adult Education","Foyer Building","R2001"
"Wolverhampton City Council","http://opendatacommunities.org/id/metropolitan-district-council/wolverhampton","705542","Midwest Electrical Services Limited","I18653","23.38","R&M - Departmental planned (external)","130238294","09/01/2019","Maintenance Programme","Centralised R&M","R2001"
"Wolverhampton City Council","http://opendatacommunities.org/id/metropolitan-district-council/wolverhampton","705542","Midwest Electrical Services Limited","I18341","8,950.00","R&M - Departmental planned (external)","130236228","09/01/2019","Maintenance Programme","Centralised R&M","R2001"
"Wolverhampton City Council","http://opendatacommunities.org/id/metropolitan-district-council/wolverhampton","705542","Midwest Electrical Services Limited","I18190","1,932.00","R&M - Departmental planned (external)","130234289","09/01/2019","Maintenance Programme","Centralised R&M","R2001"
"Wolverhampton City Council","http://opendatacommunities.org/id/metropolitan-district-council/wolverhampton","705542","Midwest Electrical Services Limited","I18631","71.45","R&M - Departmental planned (external)","130239388","23/01/2019","Maintenance Programme","Centralised R&M","R2001"
"Wolverhampton City Council","http://opendatacommunities.org/id/metropolitan-district-council/wolverhampton","705542","Midwest Electrical Services Limited","I18680","35.48","R&M - Departmental planned (external)","130238405","30/01/2019","Maintenance Programme","Centralised R&M","R2001"
"Wolverhampton City Council","http://opendatacommunities.org/id/metropolitan-district-council/wolverhampton","705542","Midwest Electrical Services Limited","I18700","94.12","R&M - Departmental planned (external)","130238424","30/01/2019","Maintenance Programme","Centralised R&M","R2001"
"Wolverhampton City Council","http://opendatacommunities.org/id/metropolitan-district-council/wolverhampton","705542","Midwest Electrical Services Limited","I18708","19,763.06","R&M - Departmental planned (external)","130238432","30/01/2019","Maintenance Programme","Centralised R&M","R2001"
"Wolverhampton City Council","http://opendatacommunities.org/id/metropolitan-district-council/wolverhampton","705542","Midwest Electrical Services Limited","I18553","369.47","R&M - Departmental planned (external)","130237877","30/01/2019","Maintenance Programme","Centralised R&M","R2001"
"Wolverhampton City Council","http://opendatacommunities.org/id/metropolitan-district-council/wolverhampton","705542","Midwest Electrical Services Limited","I18711","12,500.00","R&M - Departmental planned (external)","130238434","30/01/2019","Maintenance Programme","Centralised R&M","R2001"
"Wolverhampton City Council","http://opendatacommunities.org/id/metropolitan-district-council/wolverhampton","705542","Midwest Electrical Services Limited","I18317","642.05","R&M - Departmental planned (external)","130235696","30/01/2019","Facilities Management","Caretakers Community Centre","R2001"
"Wolverhampton City Council","http://opendatacommunities.org/id/metropolitan-district-council/wolverhampton","705542","Midwest Electrical Services Limited","I18375","2,526.51","R&M - Departmental planned (external)","130236548","30/01/2019","Maintenance Programme","Centralised R&M","R2001"
"Wolverhampton City Council","http://opendatacommunities.org/id/metropolitan-district-council/wolverhampton","705542","Midwest Electrical Services Limited","I18649","23.38","R&M - Departmental planned (external)","130238292","30/01/2019","Maintenance Programme","Centralised R&M","R2001"
"Wolverhampton City Council","http://opendatacommunities.org/id/metropolitan-district-council/wolverhampton","705542","Midwest Electrical Services Limited","I18703","23.38","R&M - Departmental planned (external)","130238427","30/01/2019","Maintenance Programme","Centralised R&M","R2001"
"Wolverhampton City Council","http://opendatacommunities.org/id/metropolitan-district-council/wolverhampton","705542","Midwest Electrical Services Limited","I18692","2,800.00","Construction and Conversion","130238416","30/01/2019","-","GF - Leisure Centres Enhancement","C1100"
"Wolverhampton City Council","http://opendatacommunities.org/id/metropolitan-district-council/wolverhampton","705542","Midwest Electrical Services Limited","I18871","3,328.00","R&M - Departmental planned (external)","130242346","30/01/2019","Maintenance Programme","Centralised R&M","R2001"
"Wolverhampton City Council","http://opendatacommunities.org/id/metropolitan-district-council/wolverhampton","705542","Midwest Electrical Services Limited","I18864","44.38","R&M - Departmental planned (external)","130239877","30/01/2019","Maintenance Programme","Centralised R&M","R2001"
"Wolverhampton City Council","http://opendatacommunities.org/id/metropolitan-district-council/wolverhampton","705542","Midwest Electrical Services Limited","I18657","37.67","R&M - Departmental planned (external)","130238396","30/01/2019","Markets","Bilston Market and Licensed Operations","R2001"
"Wolverhampton City Council","http://opendatacommunities.org/id/metropolitan-district-council/wolverhampton","705542","Midwest Electrical Services Limited","I18518","7,698.48","Construction and Conversion","130237465","18/01/2019","-","Electrical Works","C1100"
"Wolverhampton City Council","http://opendatacommunities.org/id/metropolitan-district-council/wolverhampton","705542","Midwest Electrical Services Limited","I18489","7,016.20","R&M - Departmental planned (external)","130237012","18/01/2019","Maintenance Programme","Centralised R&M","R2001"
"Wolverhampton City Council","http://opendatacommunities.org/id/metropolitan-district-council/wolverhampton","705542","Midwest Electrical Services Limited","I18340","2,926.01","R&M - Departmental planned (external)","130236227","25/01/2019","Maintenance Programme","Centralised R&M","R2001"
"Wolverhampton City Council","http://opendatacommunities.org/id/metropolitan-district-council/wolverhampton","705542","Midwest Electrical Services Limited","I18803","23.73","R&M - Departmental planned (external)","130238867","16/01/2019","Maintenance Programme","Centralised R&M","R2001"
"Wolverhampton City Council","http://opendatacommunities.org/id/metropolitan-district-council/wolverhampton","705542","Midwest Electrical Services Limited","I18805","104.31","R&M - Departmental planned (external)","130238869","16/01/2019","Maintenance Programme","Centralised R&M","R2001"
"Wolverhampton City Council","http://opendatacommunities.org/id/metropolitan-district-council/wolverhampton","705542","Midwest Electrical Services Limited","I18735","68.00","R&M - Departmental planned (external)","130238625","16/01/2019","Maintenance Programme","Centralised R&M","R2001"
"Wolverhampton City Council","http://opendatacommunities.org/id/metropolitan-district-council/wolverhampton","705542","Midwest Electrical Services Limited","I18820","2,963.20","R&M - Departmental planned (external)","130238981","16/01/2019","Facilities Management","Magistrates","R2001"
"Wolverhampton City Council","http://opendatacommunities.org/id/metropolitan-district-council/wolverhampton","705542","Midwest Electrical Services Limited","I18683","154.10","R&M - Departmental planned (external)","130238407","16/01/2019","Maintenance Programme","Centralised R&M","R2001"
"Wolverhampton City Council","http://opendatacommunities.org/id/metropolitan-district-council/wolverhampton","705542","Midwest Electrical Services Limited","I18795","1,350.00","R&M - Departmental planned (external)","130238859","16/01/2019","Maintenance Programme","Centralised R&M","R2001"
"Wolverhampton City Council","http://opendatacommunities.org/id/metropolitan-district-council/wolverhampton","705542","Midwest Electrical Services Limited","I18724","23.38","R&M - Departmental planned (external)","130238617","16/01/2019","Maintenance Programme","Centralised R&M","R2001"
"Wolverhampton City Council","http://opendatacommunities.org/id/metropolitan-district-council/wolverhampton","705542","Midwest Electrical Services Limited","I18780","350.00","Services - Consultants","130238854","16/01/2019","Planning","Building Consultancy","R4404"
"Wolverhampton City Council","http://opendatacommunities.org/id/metropolitan-district-council/wolverhampton","705542","Midwest Electrical Services Limited","I18802","33.33","R&M - Departmental planned (external)","130238866","16/01/2019","Maintenance Programme","Centralised R&M","R2001"
"Wolverhampton City Council","http://opendatacommunities.org/id/metropolitan-district-council/wolverhampton","705542","Midwest Electrical Services Limited","I18814","23.38","R&M - Departmental planned (external)","130238873","16/01/2019","Maintenance Programme","Centralised R&M","R2001"
"Wolverhampton City Council","http://opendatacommunities.org/id/metropolitan-district-council/wolverhampton","705542","Midwest Electrical Services Limited","I18792","81.42","R&M - Departmental planned (external)","130238856","16/01/2019","Maintenance Programme","Centralised R&M","R2001"
"Wolverhampton City Council","http://opendatacommunities.org/id/metropolitan-district-council/wolverhampton","705542","Midwest Electrical Services Limited","I18779","103.60","R&M - Departmental planned (external)","130238853","16/01/2019","Maintenance Programme","Centralised R&M","R2001"
"Wolverhampton City Council","http://opendatacommunities.org/id/metropolitan-district-council/wolverhampton","705542","Midwest Electrical Services Limited","I18798","44.00","R&M - Departmental planned (external)","130238862","16/01/2019","Maintenance Programme","Centralised R&M","R2001"
"Wolverhampton City Council","http://opendatacommunities.org/id/metropolitan-district-council/wolverhampton","705542","Midwest Electrical Services Limited","I18791","1,304.10","R&M - Departmental planned (external)","130238855","16/01/2019","Facilities Management","Caretakers Community Centre","R2001"
"Wolverhampton City Council","http://opendatacommunities.org/id/metropolitan-district-council/wolverhampton","705542","Midwest Electrical Services Limited","I18554","56.51","R&M - Departmental planned (external)","130239387","16/01/2019","Maintenance Programme","Centralised R&M","R2001"
"Wolverhampton City Council","http://opendatacommunities.org/id/metropolitan-district-council/wolverhampton","705542","Midwest Electrical Services Limited","I18727","23.38","R&M - Departmental planned (external)","130238620","16/01/2019","Facilities Management","Magistrates","R2001"
"Wolverhampton City Council","http://opendatacommunities.org/id/metropolitan-district-council/wolverhampton","705542","Midwest Electrical Services Limited","I18722","46.73","R&M - Departmental planned (external)","130238615","16/01/2019","Facilities Management","Bilston Town Hall","R2001"
"Wolverhampton City Council","http://opendatacommunities.org/id/metropolitan-district-council/wolverhampton","705542","Midwest Electrical Services Limited","I18808","103.27","R&M - Departmental planned (external)","130238870","16/01/2019","Maintenance Programme","Centralised R&M","R2001"
"Wolverhampton City Council","http://opendatacommunities.org/id/metropolitan-district-council/wolverhampton","705542","Midwest Electrical Services Limited","I18797","31.30","R&M - Departmental planned (external)","130238861","16/01/2019","Maintenance Programme","Centralised R&M","R2001"
"Wolverhampton City Council","http://opendatacommunities.org/id/metropolitan-district-council/wolverhampton","705542","Midwest Electrical Services Limited","I18817","324.02","R&M - Departmental planned (external)","130238980","16/01/2019","Maintenance Programme","Centralised R&M","R2001"
"Wolverhampton City Council","http://opendatacommunities.org/id/metropolitan-district-council/wolverhampton","705542","Midwest Electrical Services Limited","I18911","3,142.07","R&M - Departmental planned (external)","130240714","25/01/2019","Maintenance Programme","Centralised R&M","R2001"
"Wolverhampton City Council","http://opendatacommunities.org/id/metropolitan-district-council/wolverhampton","705542","Midwest Electrical Services Limited","I18868","563.64","R&M - Departmental planned (external)","130239881","25/01/2019","Maintenance Programme","Centralised R&M","R2001"
"Wolverhampton City Council","http://opendatacommunities.org/id/metropolitan-district-council/wolverhampton","705542","Midwest Electrical Services Limited","I18909","2,545.89","R&M - Departmental planned (external)","130240712","25/01/2019","Maintenance Programme","Centralised R&M","R2001"
"Wolverhampton City Council","http://opendatacommunities.org/id/metropolitan-district-council/wolverhampton","705542","Midwest Electrical Services Limited","I18326","1,899.34","R&M - Departmental planned (external)","130236098","18/01/2019","Maintenance Programme","Civic Centre Repairs & Maintenance","R2001"
"Wolverhampton City Council","http://opendatacommunities.org/id/metropolitan-district-council/wolverhampton","705542","Midwest Electrical Services Limited","I18261","5,841.48","R&M - Departmental planned (external)","130234760","18/01/2019","Maintenance Programme","Centralised R&M","R2001"
"Wolverhampton City Council","http://opendatacommunities.org/id/metropolitan-district-council/wolverhampton","705542","Midwest Electrical Services Limited","I18726","35.22","R&M - Departmental planned (external)","130238619","16/01/2019","Facilities Management","Magistrates","R2001"
"Wolverhampton City Council","http://opendatacommunities.org/id/metropolitan-district-council/wolverhampton","705542","Midwest Electrical Services Limited","I18376","46.76","R&M - Departmental planned (external)","130236549","16/01/2019","Maintenance Programme","Centralised R&M","R2001"
"Wolverhampton City Council","http://opendatacommunities.org/id/metropolitan-district-council/wolverhampton","705542","Midwest Electrical Services Limited","I18376","241.24","R&M - Departmental planned (external)","130236549","16/01/2019","Maintenance Programme","Centralised R&M","R2001"
"Wolverhampton City Council","http://opendatacommunities.org/id/metropolitan-district-council/wolverhampton","705542","Midwest Electrical Services Limited","I18796","23.38","R&M - Departmental planned (external)","130238860","16/01/2019","Maintenance Programme","Centralised R&M","R2001"
"Wolverhampton City Council","http://opendatacommunities.org/id/metropolitan-district-council/wolverhampton","705542","Midwest Electrical Services Limited","I18167","44.38","R&M - Departmental planned (external)","130234279","16/01/2019","Maintenance Programme","Centralised R&M","R2001"
"Wolverhampton City Council","http://opendatacommunities.org/id/metropolitan-district-council/wolverhampton","705542","Midwest Electrical Services Limited","I18730","23.38","R&M - Departmental planned (external)","130238622","16/01/2019","Markets","Bilston Market and Licensed Operations","R2001"
"Wolverhampton City Council","http://opendatacommunities.org/id/metropolitan-district-council/wolverhampton","705542","Midwest Electrical Services Limited","I18804","35.48","R&M - Departmental planned (external)","130238868","16/01/2019","Maintenance Programme","Centralised R&M","R2001"
"Wolverhampton City Council","http://opendatacommunities.org/id/metropolitan-district-council/wolverhampton","705542","Midwest Electrical Services Limited","I18773","71.38","R&M - Departmental planned (external)","130238633","16/01/2019","Maintenance Programme","Centralised R&M","R2001"
"Wolverhampton City Council","http://opendatacommunities.org/id/metropolitan-district-council/wolverhampton","705542","Midwest Electrical Services Limited","I18770","157.27","R&M - Departmental planned (external)","130238631","16/01/2019","Maintenance Programme","Centralised R&M","R2001"
"Wolverhampton City Council","http://opendatacommunities.org/id/metropolitan-district-council/wolverhampton","705542","Midwest Electrical Services Limited","I18669","45.43","R&M - Departmental planned (external)","130238398","16/01/2019","Maintenance Programme","Centralised R&M","R2001"
"Wolverhampton City Council","http://opendatacommunities.org/id/metropolitan-district-council/wolverhampton","705542","Midwest Electrical Services Limited","I18771","461.31","R&M - Departmental planned (external)","130238632","16/01/2019","Maintenance Programme","Centralised R&M","R2001"
"Wolverhampton City Council","http://opendatacommunities.org/id/metropolitan-district-council/wolverhampton","705542","Midwest Electrical Services Limited","I18793","26.32","R&M - Departmental planned (external)","130238857","16/01/2019","Maintenance Programme","Centralised R&M","R2001"
"Wolverhampton City Council","http://opendatacommunities.org/id/metropolitan-district-council/wolverhampton","705542","Midwest Electrical Services Limited","I18816","110.43","R&M - Departmental planned (external)","130238874","16/01/2019","Maintenance Programme","Centralised R&M","R2001"
"Wolverhampton City Council","http://opendatacommunities.org/id/metropolitan-district-council/wolverhampton","705543","Arnold Clark Auto Ltd t/a M M Factors","633528-BI","98.00","Equipment - Purchase","190548915","11/01/2019","Fleet Services","Fleet Management","R4000"
"Wolverhampton City Council","http://opendatacommunities.org/id/metropolitan-district-council/wolverhampton","705543","Arnold Clark Auto Ltd t/a M M Factors","621172-BI","11.16","Equipment - Purchase","190548913","11/01/2019","Fleet Services","Fleet Management","R4000"
"Wolverhampton City Council","http://opendatacommunities.org/id/metropolitan-district-council/wolverhampton","705543","Arnold Clark Auto Ltd t/a M M Factors","621172-BI","28.94","Equipment - Purchase","190548913","11/01/2019","Fleet Services","Fleet Management","R4000"
"Wolverhampton City Council","http://opendatacommunities.org/id/metropolitan-district-council/wolverhampton","705543","Arnold Clark Auto Ltd t/a M M Factors","621172-BI","5.28","Equipment - Purchase","190548913","11/01/2019","Fleet Services","Fleet Management","R4000"
"Wolverhampton City Council","http://opendatacommunities.org/id/metropolitan-district-council/wolverhampton","705543","Arnold Clark Auto Ltd t/a M M Factors","621172-BI","49.00","Equipment - Purchase","190548913","11/01/2019","Fleet Services","Fleet Management","R4000"
"Wolverhampton City Council","http://opendatacommunities.org/id/metropolitan-district-council/wolverhampton","705543","Arnold Clark Auto Ltd t/a M M Factors","621189-BI","-11.16","Equipment - Purchase","190548914","11/01/2019","Fleet Services","Fleet Management","R4000"
"Wolverhampton City Council","http://opendatacommunities.org/id/metropolitan-district-council/wolverhampton","705609","Mobile Mini UK Limited","7001108458","43.20","Equipment - Hire","130241566","30/01/2019","Leisure Services","Aldersley Leisure Village","R4001"
"Wolverhampton City Council","http://opendatacommunities.org/id/metropolitan-district-council/wolverhampton","705609","Mobile Mini UK Limited","7001108459","43.20","Equipment - Hire","130239882","30/01/2019","Bereavement Services","Bereavement services - Grounds maintenance","R4001"
"Wolverhampton City Council","http://opendatacommunities.org/id/metropolitan-district-council/wolverhampton","705609","Mobile Mini UK Limited","7001078124","43.20","Equipment - Hire","130237886","02/01/2019","Bereavement Services","Bereavement services - Grounds maintenance","R4001"
"Wolverhampton City Council","http://opendatacommunities.org/id/metropolitan-district-council/wolverhampton","705609","Mobile Mini UK Limited","7001102168","50.00","Hire of Plant","130239391","25/01/2019","Environmental Maintenance","Ground Maintenance East","R3201"
"Wolverhampton City Council","http://opendatacommunities.org/id/metropolitan-district-council/wolverhampton","705609","Mobile Mini UK Limited","7001102169","51.80","Equipment - Hire","130239392","25/01/2019","Bereavement Services","Bereavement services - Grounds maintenance","R4001"
"Wolverhampton City Council","http://opendatacommunities.org/id/metropolitan-district-council/wolverhampton","705634","Morelock Signs Limited","0000214636","220.68","Construction and Conversion","130237684","04/01/2019","-","Safety Programme","C1100"
"Wolverhampton City Council","http://opendatacommunities.org/id/metropolitan-district-council/wolverhampton","705634","Morelock Signs Limited","0000214635","214.60","Materials","130237683","04/01/2019","Street Lighting","Street Lighting Maintenance","R4007"
"Wolverhampton City Council","http://opendatacommunities.org/id/metropolitan-district-council/wolverhampton","705634","Morelock Signs Limited","0000214635","127.92","Materials","130237683","04/01/2019","Street Lighting","Street Lighting Maintenance","R4007"
"Wolverhampton City Council","http://opendatacommunities.org/id/metropolitan-district-council/wolverhampton","705634","Morelock Signs Limited","0000214635","141.18","Materials","130237683","04/01/2019","Street Lighting","Street Lighting Maintenance","R4007"
"Wolverhampton City Council","http://opendatacommunities.org/id/metropolitan-district-council/wolverhampton","705634","Morelock Signs Limited","0000214614","136.14","Construction and Conversion","130237324","02/01/2019","-","Safety Programme","C1100"
"Wolverhampton City Council","http://opendatacommunities.org/id/metropolitan-district-council/wolverhampton","705680","M-R-S Communications Limited","1186470","130.00","Comms - Radios","130241501","30/01/2019","Licensing","Private Hire Drivers","R4508"
"Wolverhampton City Council","http://opendatacommunities.org/id/metropolitan-district-council/wolverhampton","705680","M-R-S Communications Limited","237770","101.27","Equipment - Purchase","130241494","25/01/2019","Markets","Wolverhampton Indoor and Open Market","R4000"
"Wolverhampton City Council","http://opendatacommunities.org/id/metropolitan-district-council/wolverhampton","705680","M-R-S Communications Limited","237769","12.15","Equipment - Purchase","130241495","25/01/2019","Markets","Wolverhampton Indoor and Open Market","R4000"
"Wolverhampton City Council","http://opendatacommunities.org/id/metropolitan-district-council/wolverhampton","705680","M-R-S Communications Limited","1186467","130.00","Equipment - R & M","130236842","09/01/2019","Operation & Maintenance of Existing Network","UTC Wolverhampton","R4003"
"Wolverhampton City Council","http://opendatacommunities.org/id/metropolitan-district-council/wolverhampton","705680","M-R-S Communications Limited","1186400","130.00","Services - Security","130241258","23/01/2019","Local Economy","Global Budgets","R4405"
"Wolverhampton City Council","http://opendatacommunities.org/id/metropolitan-district-council/wolverhampton","705680","M-R-S Communications Limited","1186200","195.00","Comms - Radios","130241137","23/01/2019","Cleaning","Public Conveniences","R4508"
"Wolverhampton City Council","http://opendatacommunities.org/id/metropolitan-district-council/wolverhampton","705691","Multifloor (Walsall) Limited","56767","295.00","R&M - Departmental planned (external)","130238435","25/01/2019","Maintenance Programme","Civic Centre Repairs & Maintenance","R2001"
"Wolverhampton City Council","http://opendatacommunities.org/id/metropolitan-district-council/wolverhampton","705691","Multifloor (Walsall) Limited","56822","355.00","Equipment - Purchase","130238984","16/01/2019","Older People Provider Services","Bradley Lodge Resource Centre","R4000"
"Wolverhampton City Council","http://opendatacommunities.org/id/metropolitan-district-council/wolverhampton","705691","Multifloor (Walsall) Limited","56769","376.00","R&M - Departmental planned (external)","130239393","16/01/2019","Maintenance Programme","Civic Centre Repairs & Maintenance","R2001"
"Wolverhampton City Council","http://opendatacommunities.org/id/metropolitan-district-council/wolverhampton","705691","Multifloor (Walsall) Limited","56649","280.00","R&M - Departmental planned (external)","130236236","16/01/2019","Maintenance Programme","Civic Centre Repairs & Maintenance","R2001"
"Wolverhampton City Council","http://opendatacommunities.org/id/metropolitan-district-council/wolverhampton","705691","Multifloor (Walsall) Limited","56732","2,040.00","Equipment - Purchase","130238025","09/01/2019","Older People Provider Services","Older People Provider Management","R4000"
"Wolverhampton City Council","http://opendatacommunities.org/id/metropolitan-district-council/wolverhampton","705691","Multifloor (Walsall) Limited","56768","376.00","R&M - Departmental planned (external)","130238436","23/01/2019","Maintenance Programme","Civic Centre Repairs & Maintenance","R2001"
"Wolverhampton City Council","http://opendatacommunities.org/id/metropolitan-district-council/wolverhampton","705748","Nacro","SI0000000784","333,333.33","TPP - Public Health Contracts","130239539","30/01/2019","Healthy Life Expectancy","Alcohol and Drug","R5060"
"Wolverhampton City Council","http://opendatacommunities.org/id/metropolitan-district-council/wolverhampton","705751","Nalco Limited","9400488629","416.62","R&M - Departmental planned (external)","130237685","04/01/2019","Maintenance Programme","Civic Centre Repairs & Maintenance","R2001"
"Wolverhampton City Council","http://opendatacommunities.org/id/metropolitan-district-council/wolverhampton","705855","Newbridge Preparatory School","NEF Spring 2019 INST 1","20,471.40","TPP - Private Nursery Education Funding","190553185","23/01/2019","Early Years","Early Years Universal Entitlement for 3 and 4 Year Olds","R5035"
"Wolverhampton City Council","http://opendatacommunities.org/id/metropolitan-district-council/wolverhampton","705861","Newhampton Arts Centre","4008","100.00","Room Hire","130237135","16/01/2019","Local Economy","Service Development Team","R2201"
"Wolverhampton City Council","http://opendatacommunities.org/id/metropolitan-district-council/wolverhampton","705861","Newhampton Arts Centre","4008","105.00","Catering","130237135","16/01/2019","Local Economy","Service Development Team","R4100"
"Wolverhampton City Council","http://opendatacommunities.org/id/metropolitan-district-council/wolverhampton","705869","Newstart Networks Cic","NSN29/2018-2019","1,400.00","Services - Professional Fees","130239394","09/01/2019","Children & Young People In Care","LAC Transitions Team","R4400"
"Wolverhampton City Council","http://opendatacommunities.org/id/metropolitan-district-council/wolverhampton","705899","Nikki Downes","3DEC","34.00","TPP - Child Care provided for client","130239211","09/01/2019","Adult Education","Discretionary Fund","R5034"
"Wolverhampton City Council","http://opendatacommunities.org/id/metropolitan-district-council/wolverhampton","705907","NJB Physiotherapy Limited","62505","85.00","Services - Professional Fees","130240958","23/01/2019","Human Resources","HR Advice","R4400"
"Wolverhampton City Council","http://opendatacommunities.org/id/metropolitan-district-council/wolverhampton","705907","NJB Physiotherapy Limited","62752","85.00","Services - Professional Fees","130240963","30/01/2019","Human Resources","HR Advice","R4400"
"Wolverhampton City Council","http://opendatacommunities.org/id/metropolitan-district-council/wolverhampton","705907","NJB Physiotherapy Limited","62828","85.00","Services - Professional Fees","130240968","30/01/2019","Human Resources","HR Advice","R4400"
"Wolverhampton City Council","http://opendatacommunities.org/id/metropolitan-district-council/wolverhampton","705907","NJB Physiotherapy Limited","62565","42.00","Services - Professional Fees","130240959","30/01/2019","Human Resources","HR Advice","R4400"
"Wolverhampton City Council","http://opendatacommunities.org/id/metropolitan-district-council/wolverhampton","705907","NJB Physiotherapy Limited","62827","85.00","Services - Professional Fees","130240967","30/01/2019","Human Resources","HR Advice","R4400"
"Wolverhampton City Council","http://opendatacommunities.org/id/metropolitan-district-council/wolverhampton","705907","NJB Physiotherapy Limited","62751","85.00","Services - Professional Fees","130240962","30/01/2019","Human Resources","HR Advice","R4400"
"Wolverhampton City Council","http://opendatacommunities.org/id/metropolitan-district-council/wolverhampton","705907","NJB Physiotherapy Limited","62426","85.00","Services - Professional Fees","130238444","02/01/2019","Human Resources","HR Advice","R4400"
"Wolverhampton City Council","http://opendatacommunities.org/id/metropolitan-district-council/wolverhampton","705907","NJB Physiotherapy Limited","62454","84.00","Services - Professional Fees","130238448","02/01/2019","Human Resources","HR Advice","R4400"
"Wolverhampton City Council","http://opendatacommunities.org/id/metropolitan-district-council/wolverhampton","705907","NJB Physiotherapy Limited","62411","252.00","Services - Professional Fees","130238440","02/01/2019","Human Resources","HR Advice","R4400"
"Wolverhampton City Council","http://opendatacommunities.org/id/metropolitan-district-council/wolverhampton","705907","NJB Physiotherapy Limited","62424","85.00","Services - Professional Fees","130238442","02/01/2019","Human Resources","HR Advice","R4400"
"Wolverhampton City Council","http://opendatacommunities.org/id/metropolitan-district-council/wolverhampton","705907","NJB Physiotherapy Limited","62520","126.00","Services - Professional Fees","130238642","02/01/2019","Human Resources","HR Advice","R4400"
"Wolverhampton City Council","http://opendatacommunities.org/id/metropolitan-district-council/wolverhampton","705907","NJB Physiotherapy Limited","62507","168.00","Services - Professional Fees","130238450","02/01/2019","Human Resources","HR Advice","R4400"
"Wolverhampton City Council","http://opendatacommunities.org/id/metropolitan-district-council/wolverhampton","705907","NJB Physiotherapy Limited","62451","85.00","Services - Professional Fees","130238638","02/01/2019","Human Resources","HR Advice","R4400"
"Wolverhampton City Council","http://opendatacommunities.org/id/metropolitan-district-council/wolverhampton","705907","NJB Physiotherapy Limited","62224","147.00","Services - Professional Fees","130238437","02/01/2019","Human Resources","HR Advice","R4400"
"Wolverhampton City Council","http://opendatacommunities.org/id/metropolitan-district-council/wolverhampton","705907","NJB Physiotherapy Limited","62449","147.00","Services - Professional Fees","130238446","02/01/2019","Human Resources","HR Advice","R4400"
"Wolverhampton City Council","http://opendatacommunities.org/id/metropolitan-district-council/wolverhampton","705907","NJB Physiotherapy Limited","62825","85.00","Services - Professional Fees","130240965","30/01/2019","Human Resources","HR Advice","R4400"
"Wolverhampton City Council","http://opendatacommunities.org/id/metropolitan-district-council/wolverhampton","705907","NJB Physiotherapy Limited","62750","50.00","Services - Professional Fees","130240961","30/01/2019","Human Resources","HR Advice","R4400"
"Wolverhampton City Council","http://opendatacommunities.org/id/metropolitan-district-council/wolverhampton","705907","NJB Physiotherapy Limited","62753","50.00","Services - Professional Fees","130240964","30/01/2019","Human Resources","HR Advice","R4400"
"Wolverhampton City Council","http://opendatacommunities.org/id/metropolitan-district-council/wolverhampton","705907","NJB Physiotherapy Limited","62734","147.00","Services - Professional Fees","130240960","30/01/2019","Human Resources","HR Advice","R4400"
"Wolverhampton City Council","http://opendatacommunities.org/id/metropolitan-district-council/wolverhampton","705907","NJB Physiotherapy Limited","62826","85.00","Services - Professional Fees","130240966","30/01/2019","Human Resources","HR Advice","R4400"
"Wolverhampton City Council","http://opendatacommunities.org/id/metropolitan-district-council/wolverhampton","705907","NJB Physiotherapy Limited","61256","42.00","Services - Professional Fees","130242173","30/01/2019","Human Resources","HR Advice","R4400"
"Wolverhampton City Council","http://opendatacommunities.org/id/metropolitan-district-council/wolverhampton","705907","NJB Physiotherapy Limited","62423","85.00","Services - Professional Fees","130238441","02/01/2019","Human Resources","HR Advice","R4400"
"Wolverhampton City Council","http://opendatacommunities.org/id/metropolitan-district-council/wolverhampton","705907","NJB Physiotherapy Limited","62427","85.00","Services - Professional Fees","130238445","02/01/2019","Human Resources","HR Advice","R4400"
"Wolverhampton City Council","http://opendatacommunities.org/id/metropolitan-district-council/wolverhampton","705907","NJB Physiotherapy Limited","62506","42.00","Services - Professional Fees","130238641","02/01/2019","Human Resources","HR Advice","R4400"
"Wolverhampton City Council","http://opendatacommunities.org/id/metropolitan-district-council/wolverhampton","705907","NJB Physiotherapy Limited","62455","147.00","Services - Professional Fees","130238449","02/01/2019","Human Resources","HR Advice","R4400"
"Wolverhampton City Council","http://opendatacommunities.org/id/metropolitan-district-council/wolverhampton","705907","NJB Physiotherapy Limited","61601","42.00","Services - Professional Fees","130238637","02/01/2019","Human Resources","HR Advice","R4400"
"Wolverhampton City Council","http://opendatacommunities.org/id/metropolitan-district-council/wolverhampton","705907","NJB Physiotherapy Limited","62555","147.00","Services - Professional Fees","130238645","02/01/2019","Human Resources","HR Advice","R4400"
"Wolverhampton City Council","http://opendatacommunities.org/id/metropolitan-district-council/wolverhampton","705907","NJB Physiotherapy Limited","62271","85.00","Services - Professional Fees","130238439","02/01/2019","Human Resources","HR Advice","R4400"
"Wolverhampton City Council","http://opendatacommunities.org/id/metropolitan-district-council/wolverhampton","705907","NJB Physiotherapy Limited","62425","85.00","Services - Professional Fees","130238443","02/01/2019","Human Resources","HR Advice","R4400"
"Wolverhampton City Council","http://opendatacommunities.org/id/metropolitan-district-council/wolverhampton","705907","NJB Physiotherapy Limited","62450","84.00","Services - Professional Fees","130238447","02/01/2019","Human Resources","HR Advice","R4400"
"Wolverhampton City Council","http://opendatacommunities.org/id/metropolitan-district-council/wolverhampton","705907","NJB Physiotherapy Limited","62508","147.00","Services - Professional Fees","130238451","02/01/2019","Human Resources","HR Advice","R4400"
"Wolverhampton City Council","http://opendatacommunities.org/id/metropolitan-district-council/wolverhampton","705907","NJB Physiotherapy Limited","62501","84.00","Services - Professional Fees","130238639","02/01/2019","Human Resources","HR Advice","R4400"
"Wolverhampton City Council","http://opendatacommunities.org/id/metropolitan-district-council/wolverhampton","705907","NJB Physiotherapy Limited","62553","147.00","Services - Professional Fees","130238643","02/01/2019","Human Resources","HR Advice","R4400"
"Wolverhampton City Council","http://opendatacommunities.org/id/metropolitan-district-council/wolverhampton","705907","NJB Physiotherapy Limited","61260","42.00","Services - Professional Fees","130238636","02/01/2019","Human Resources","HR Advice","R4400"
"Wolverhampton City Council","http://opendatacommunities.org/id/metropolitan-district-council/wolverhampton","705907","NJB Physiotherapy Limited","62502","85.00","Services - Professional Fees","130238640","02/01/2019","Human Resources","HR Advice","R4400"
"Wolverhampton City Council","http://opendatacommunities.org/id/metropolitan-district-council/wolverhampton","705907","NJB Physiotherapy Limited","62554","105.00","Services - Professional Fees","130238644","02/01/2019","Human Resources","HR Advice","R4400"
"Wolverhampton City Council","http://opendatacommunities.org/id/metropolitan-district-council/wolverhampton","705913","No 5 Chambers Limited","2951","625.00","Services - Professional Fees","130240718","23/01/2019","Public Protection","Trading Standards","R4400"
"Wolverhampton City Council","http://opendatacommunities.org/id/metropolitan-district-council/wolverhampton","705913","No 5 Chambers Limited","998","431.25","Services - Professional Fees","130240513","23/01/2019","Planning","Planning","R4400"
"Wolverhampton City Council","http://opendatacommunities.org/id/metropolitan-district-council/wolverhampton","705914","Two by Two�s Day Nursery T/A Noah�s Ark","TFT Spring 2019 Inst 1","13,582.08","TPP - Private Nursery Education Funding","190553192","23/01/2019","Early Years","Early Years Entitlement Funding for Disadvantaged 2 Year Olds","R5035"
"Wolverhampton City Council","http://opendatacommunities.org/id/metropolitan-district-council/wolverhampton","705914","Two by Two�s Day Nursery T/A Noah�s Ark","NEF Spring 2019 INST 1","27,999.00","TPP - Private Nursery Education Funding","190553185","23/01/2019","Early Years","Early Years Universal Entitlement for 3 and 4 Year Olds","R5035"
"Wolverhampton City Council","http://opendatacommunities.org/id/metropolitan-district-council/wolverhampton","705915","Noah�s Ark Environmental Services Ltd","WV1812","767.00","Services - Professional Fees","130239541","04/01/2019","Public Protection","Pest Control & Animal Welfare","R4400"
"Wolverhampton City Council","http://opendatacommunities.org/id/metropolitan-district-council/wolverhampton","705916","Nobisco Limited","569579","295.10","Cleaning Supplies and Materials","130238141","04/01/2019","Adult Education","Central Costs","R2705"
"Wolverhampton City Council","http://opendatacommunities.org/id/metropolitan-district-council/wolverhampton","705916","Nobisco Limited","571537","3,083.83","Cleaning Supplies and Materials","130239717","11/01/2019","Cleaning","Cleaning of Buildings - General","R2705"
"Wolverhampton City Council","http://opendatacommunities.org/id/metropolitan-district-council/wolverhampton","705916","Nobisco Limited","571539","92.53","Cleaning Supplies and Materials","130239719","11/01/2019","Learning Disability Provider","Ernest Bold Court","R2705"
"Wolverhampton City Council","http://opendatacommunities.org/id/metropolitan-district-council/wolverhampton","705916","Nobisco Limited","572127","53.45","Cleaning Supplies and Materials","130240229","30/01/2019","Visitor Economy","Bantock House Museum","R2705"
"Wolverhampton City Council","http://opendatacommunities.org/id/metropolitan-district-council/wolverhampton","705916","Nobisco Limited","574852","138.05","Cleaning Supplies and Materials","130242013","30/01/2019","Learning Disability Provider","Ernest Bold Court","R2705"
"Wolverhampton City Council","http://opendatacommunities.org/id/metropolitan-district-council/wolverhampton","705916","Nobisco Limited","574614","37.20","Cleaning Supplies and Materials","130241886","30/01/2019","Cleaning","Cleaning of Buildings - General","R2705"
"Wolverhampton City Council","http://opendatacommunities.org/id/metropolitan-district-council/wolverhampton","705916","Nobisco Limited","572766","34.92","Cleaning Supplies and Materials","130240520","30/01/2019","Learning Disability Provider","Duke Street Bungalows","R2705"
"Wolverhampton City Council","http://opendatacommunities.org/id/metropolitan-district-council/wolverhampton","705916","Nobisco Limited","574851","276.08","Cleaning Supplies and Materials","130242012","30/01/2019","Markets","Bilston Market and Licensed Operations","R2705"
"Wolverhampton City Council","http://opendatacommunities.org/id/metropolitan-district-council/wolverhampton","705916","Nobisco Limited","574853","73.20","Cleaning Supplies and Materials","130242014","30/01/2019","Older People Provider Services","Reablement Team","R2705"
"Wolverhampton City Council","http://opendatacommunities.org/id/metropolitan-district-council/wolverhampton","705916","Nobisco Limited","573941","322.40","Cleaning Supplies and Materials","130241263","30/01/2019","Learning Disability Provider","Duke Street Bungalows","R2705"
"Wolverhampton City Council","http://opendatacommunities.org/id/metropolitan-district-council/wolverhampton","705916","Nobisco Limited","574613","1,263.64","Cleaning Supplies and Materials","130241885","30/01/2019","Cleaning","Cleaning of Buildings - General","R2705"
"Wolverhampton City Council","http://opendatacommunities.org/id/metropolitan-district-council/wolverhampton","705916","Nobisco Limited","574166","17.91","Cleaning Supplies and Materials","130241383","30/01/2019","Learning Disability Provider","Ernest Bold Court","R2705"
"Wolverhampton City Council","http://opendatacommunities.org/id/metropolitan-district-council/wolverhampton","705916","Nobisco Limited","574618","63.36","Cleaning Supplies and Materials","130241890","30/01/2019","Leisure Services","Bert Williams Leisure Centre","R2705"
"Wolverhampton City Council","http://opendatacommunities.org/id/metropolitan-district-council/wolverhampton","705916","Nobisco Limited","574615","21.03","Cleaning Supplies and Materials","130241887","30/01/2019","Learning Disability Provider","Duke Street Bungalows","R2705"
"Wolverhampton City Council","http://opendatacommunities.org/id/metropolitan-district-council/wolverhampton","705916","Nobisco Limited","574616","45.32","Cleaning Supplies and Materials","130241888","30/01/2019","Learning Disability Provider","Duke Street Bungalows","R2705"
"Wolverhampton City Council","http://opendatacommunities.org/id/metropolitan-district-council/wolverhampton","705916","Nobisco Limited","574371","725.92","Cleaning Supplies and Materials","130241724","30/01/2019","Cleaning","Cleaning of Buildings - General","R2705"
"Wolverhampton City Council","http://opendatacommunities.org/id/metropolitan-district-council/wolverhampton","705916","Nobisco Limited","574610","24.70","Cleaning Supplies and Materials","130241882","30/01/2019","Cleaning","Cleaning of Buildings - General","R2705"
"Wolverhampton City Council","http://opendatacommunities.org/id/metropolitan-district-council/wolverhampton","705916","Nobisco Limited","574850","221.72","Cleaning Supplies and Materials","130242011","30/01/2019","Catering","Civic Centre Catering","R2705"
"Wolverhampton City Council","http://opendatacommunities.org/id/metropolitan-district-council/wolverhampton","705916","Nobisco Limited","574611","141.27","Cleaning Supplies and Materials","130241883","30/01/2019","Catering","School Milk","R2705"
"Wolverhampton City Council","http://opendatacommunities.org/id/metropolitan-district-council/wolverhampton","705916","Nobisco Limited","574372","207.39","Cleaning Supplies and Materials","130241725","30/01/2019","Learning Disability Provider","Duke Street Bungalows","R2705"
"Wolverhampton City Council","http://opendatacommunities.org/id/metropolitan-district-council/wolverhampton","705916","Nobisco Limited","573150","157.36","Cleaning Supplies and Materials","130240721","23/01/2019","Specialist Support","Upper Pendeford Farm Short Breaks Centre","R2705"
"Wolverhampton City Council","http://opendatacommunities.org/id/metropolitan-district-council/wolverhampton","705916","Nobisco Limited","568364","23.86","Cleaning Supplies and Materials","130237488","18/01/2019","Leisure Services","Bert Williams Leisure Centre Caf�","R2705"
"Wolverhampton City Council","http://opendatacommunities.org/id/metropolitan-district-council/wolverhampton","705916","Nobisco Limited","9574","-3.08","Cleaning Supplies and Materials","130241139","23/01/2019","Catering","Civic Centre Catering","R2705"
"Wolverhampton City Council","http://opendatacommunities.org/id/metropolitan-district-council/wolverhampton","705916","Nobisco Limited","569572","480.55","Cleaning Supplies and Materials","130238134","23/01/2019","Catering","Education Catering - General Overheads","R2705"
"Wolverhampton City Council","http://opendatacommunities.org/id/metropolitan-district-council/wolverhampton","705916","Nobisco Limited","568867","265.44","Cleaning Supplies and Materials","130238030","09/01/2019","Learning Disability Provider","Duke Street Bungalows","R2705"
"Wolverhampton City Council","http://opendatacommunities.org/id/metropolitan-district-council/wolverhampton","705916","Nobisco Limited","571188","52.59","Cleaning Supplies and Materials","130239212","09/01/2019","Catering","Education Catering - General Overheads","R2705"
"Wolverhampton City Council","http://opendatacommunities.org/id/metropolitan-district-council/wolverhampton","705916","Nobisco Limited","571192","1,621.91","Cleaning Supplies and Materials","130239216","09/01/2019","Cleaning","Cleaning of Buildings - General","R2705"
"Wolverhampton City Council","http://opendatacommunities.org/id/metropolitan-district-council/wolverhampton","705916","Nobisco Limited","571190","19.44","Cleaning Supplies and Materials","130239214","09/01/2019","Cleaning","Cleaning of Buildings - General","R2705"
"Wolverhampton City Council","http://opendatacommunities.org/id/metropolitan-district-council/wolverhampton","705916","Nobisco Limited","571191","24.35","Cleaning Supplies and Materials","130239215","09/01/2019","Cleaning","Cleaning of Buildings - General","R2705"
"Wolverhampton City Council","http://opendatacommunities.org/id/metropolitan-district-council/wolverhampton","705916","Nobisco Limited","573942","79.12","Cleaning Supplies and Materials","130241264","25/01/2019","Visitor Economy","Bantock - Tea Rooms","R2705"
"Wolverhampton City Council","http://opendatacommunities.org/id/metropolitan-district-council/wolverhampton","705916","Nobisco Limited","572762","118.17","Cleaning Supplies and Materials","130240516","18/01/2019","Cleaning","Cleaning of Buildings - General","R2705"
"Wolverhampton City Council","http://opendatacommunities.org/id/metropolitan-district-council/wolverhampton","705916","Nobisco Limited","570334","14.64","Cleaning Supplies and Materials","130238653","16/01/2019","Older People Provider Services","Bradley Lodge Resource Centre","R2705"
"Wolverhampton City Council","http://opendatacommunities.org/id/metropolitan-district-council/wolverhampton","705916","Nobisco Limited","570070","123.60","Cleaning Supplies and Materials","130238646","04/01/2019","Adult Education","Central Costs","R2705"
"Wolverhampton City Council","http://opendatacommunities.org/id/metropolitan-district-council/wolverhampton","705916","Nobisco Limited","570580","334.40","Cleaning Supplies and Materials","130238878","04/01/2019","Environmental Maintenance","Parks - Ranger Service","R2705"
"Wolverhampton City Council","http://opendatacommunities.org/id/metropolitan-district-council/wolverhampton","705916","Nobisco Limited","570581","366.16","Cleaning Supplies and Materials","130238879","04/01/2019","Environmental Maintenance","Parks - Ranger Service","R2705"
"Wolverhampton City Council","http://opendatacommunities.org/id/metropolitan-district-council/wolverhampton","705916","Nobisco Limited","564842","129.12","Cleaning Supplies and Materials","130235710","04/01/2019","Leisure Services","Aldersley Leisure Village","R2705"
"Wolverhampton City Council","http://opendatacommunities.org/id/metropolitan-district-council/wolverhampton","705916","Nobisco Limited","573618","33.60","Cleaning Supplies and Materials","130241261","23/01/2019","Cleaning","Cleaning of Buildings - General","R2705"
"Wolverhampton City Council","http://opendatacommunities.org/id/metropolitan-district-council/wolverhampton","705916","Nobisco Limited","571700","5.28","Cleaning Supplies and Materials","130239885","16/01/2019","Learning Disability Provider","Ernest Bold Court","R2705"
"Wolverhampton City Council","http://opendatacommunities.org/id/metropolitan-district-council/wolverhampton","705916","Nobisco Limited","572126","615.42","Cleaning Supplies and Materials","130240228","16/01/2019","Cleaning","Cleaning of Buildings - General","R2705"
"Wolverhampton City Council","http://opendatacommunities.org/id/metropolitan-district-council/wolverhampton","705916","Nobisco Limited","571699","210.56","Cleaning Supplies and Materials","130239884","16/01/2019","Learning Disability Provider","Support Plus","R2705"
"Wolverhampton City Council","http://opendatacommunities.org/id/metropolitan-district-council/wolverhampton","705916","Nobisco Limited","572764","273.27","Cleaning Supplies and Materials","130240518","18/01/2019","Leisure Services","Central Baths","R2705"
"Wolverhampton City Council","http://opendatacommunities.org/id/metropolitan-district-council/wolverhampton","705916","Nobisco Limited","572763","6.06","Cleaning Supplies and Materials","130240517","18/01/2019","Markets","Bilston Market and Licensed Operations","R2705"
"Wolverhampton City Council","http://opendatacommunities.org/id/metropolitan-district-council/wolverhampton","705916","Nobisco Limited","572962","31.30","Cleaning Supplies and Materials","130240719","23/01/2019","Leisure Services","Bert Williams Leisure Centre","R2705"
"Wolverhampton City Council","http://opendatacommunities.org/id/metropolitan-district-council/wolverhampton","705916","Nobisco Limited","572767","9.21","Cleaning Supplies and Materials","130240521","18/01/2019","Leisure Services","Bert Williams Leisure Centre Caf�","R2705"
"Wolverhampton City Council","http://opendatacommunities.org/id/metropolitan-district-council/wolverhampton","705916","Nobisco Limited","572765","4.42","Cleaning Supplies and Materials","130240519","18/01/2019","Learning Disability Provider","Ernest Bold Court","R2705"
"Wolverhampton City Council","http://opendatacommunities.org/id/metropolitan-district-council/wolverhampton","705916","Nobisco Limited","569812","222.50","Cleaning Supplies and Materials","130238452","18/01/2019","Cleaning","Cleaning of Buildings - General","R2705"
"Wolverhampton City Council","http://opendatacommunities.org/id/metropolitan-district-council/wolverhampton","705916","Nobisco Limited","573398","152.60","Cleaning Supplies and Materials","130240970","23/01/2019","Leisure Services","Bert Williams Leisure Centre","R2705"
"Wolverhampton City Council","http://opendatacommunities.org/id/metropolitan-district-council/wolverhampton","705916","Nobisco Limited","573149","229.28","Cleaning Supplies and Materials","130240720","23/01/2019","Catering","Civic Centre Catering","R2705"
"Wolverhampton City Council","http://opendatacommunities.org/id/metropolitan-district-council/wolverhampton","705916","Nobisco Limited","573397","66.88","Cleaning Supplies and Materials","130240969","23/01/2019","Leisure Services","Central Baths","R2705"
"Wolverhampton City Council","http://opendatacommunities.org/id/metropolitan-district-council/wolverhampton","705916","Nobisco Limited","9552","-35.98","Cleaning Supplies and Materials","130239723","23/01/2019","Cleaning","Cleaning of Buildings - General","R2705"
"Wolverhampton City Council","http://opendatacommunities.org/id/metropolitan-district-council/wolverhampton","705916","Nobisco Limited","567017","391.19","Cleaning Supplies and Materials","130236845","16/01/2019","Cleaning","Cleaning of Buildings - General","R2705"
"Wolverhampton City Council","http://opendatacommunities.org/id/metropolitan-district-council/wolverhampton","705916","Nobisco Limited","572368","247.20","Cleaning Supplies and Materials","130240398","16/01/2019","Cleaning","Cleaning of Buildings - General","R2705"
"Wolverhampton City Council","http://opendatacommunities.org/id/metropolitan-district-council/wolverhampton","705916","Nobisco Limited","571897","132.71","Cleaning Supplies and Materials","130240088","16/01/2019","Older People Provider Services","Bradley Lodge Resource Centre","R2705"
"Wolverhampton City Council","http://opendatacommunities.org/id/metropolitan-district-council/wolverhampton","705916","Nobisco Limited","569577","152.55","Cleaning Supplies and Materials","130238139","16/01/2019","Catering","Education Catering - General Overheads","R2705"
"Wolverhampton City Council","http://opendatacommunities.org/id/metropolitan-district-council/wolverhampton","705916","Nobisco Limited","572370","32.40","Cleaning Supplies and Materials","130240399","16/01/2019","Cleaning","Cleaning of Buildings - General","R2705"
"Wolverhampton City Council","http://opendatacommunities.org/id/metropolitan-district-council/wolverhampton","705916","Nobisco Limited","571896","9.88","Cleaning Supplies and Materials","130240087","16/01/2019","Markets","Bilston Market and Licensed Operations","R2705"
"Wolverhampton City Council","http://opendatacommunities.org/id/metropolitan-district-council/wolverhampton","705916","Nobisco Limited","571536","1,980.85","Cleaning Supplies and Materials","130240514","16/01/2019","Catering","Education Catering - General Overheads","R2705"
"Wolverhampton City Council","http://opendatacommunities.org/id/metropolitan-district-council/wolverhampton","705916","Nobisco Limited","572369","164.28","Cleaning Supplies and Materials","130240515","16/01/2019","Catering","Education Catering - General Overheads","R2705"
"Wolverhampton City Council","http://opendatacommunities.org/id/metropolitan-district-council/wolverhampton","705916","Nobisco Limited","571898","45.61","Cleaning Supplies and Materials","130240089","16/01/2019","Visitor Economy","Art Gallery Tea Room","R2705"
"Wolverhampton City Council","http://opendatacommunities.org/id/metropolitan-district-council/wolverhampton","705916","Nobisco Limited","571895","4.18","Cleaning Supplies and Materials","130240086","16/01/2019","Learning Disability Provider","Support Plus","R2705"
"Wolverhampton City Council","http://opendatacommunities.org/id/metropolitan-district-council/wolverhampton","705916","Nobisco Limited","570981","120.13","Cleaning Supplies and Materials","130238985","16/01/2019","Catering","Civic Centre Catering","R2705"
"Wolverhampton City Council","http://opendatacommunities.org/id/metropolitan-district-council/wolverhampton","705916","Nobisco Limited","568585","522.57","Cleaning Supplies and Materials","130237889","16/01/2019","Cleaning","Cleaning of Buildings - General","R2705"
"Wolverhampton City Council","http://opendatacommunities.org/id/metropolitan-district-council/wolverhampton","705916","Nobisco Limited","562708","12.52","Cleaning Supplies and Materials","130234604","09/01/2019","Leisure Services","Bert Williams Leisure Centre Caf�","R2705"
"Wolverhampton City Council","http://opendatacommunities.org/id/metropolitan-district-council/wolverhampton","705916","Nobisco Limited","573619","128.10","Cleaning Supplies and Materials","130241262","25/01/2019","Older People Provider Services","Reablement Team","R2705"
"Wolverhampton City Council","http://opendatacommunities.org/id/metropolitan-district-council/wolverhampton","705916","Nobisco Limited","571359","22.10","Cleaning Supplies and Materials","130239544","09/01/2019","Learning Disability Provider","Duke Street Bungalows","R2705"
"Wolverhampton City Council","http://opendatacommunities.org/id/metropolitan-district-council/wolverhampton","705916","Nobisco Limited","571357","16.32","Cleaning Supplies and Materials","130239542","09/01/2019","Markets","Bilston Market and Licensed Operations","R2705"
"Wolverhampton City Council","http://opendatacommunities.org/id/metropolitan-district-council/wolverhampton","705916","Nobisco Limited","564599","6.06","Cleaning Supplies and Materials","130235709","18/01/2019","Leisure Services","Bert Williams Leisure Centre Caf�","R2705"
"Wolverhampton City Council","http://opendatacommunities.org/id/metropolitan-district-council/wolverhampton","705916","Nobisco Limited","570333","573.55","Cleaning Supplies and Materials","130238652","09/01/2019","Learning Disability Provider","Duke Street Bungalows","R2705"
"Wolverhampton City Council","http://opendatacommunities.org/id/metropolitan-district-council/wolverhampton","705916","Nobisco Limited","571193","301.45","Cleaning Supplies and Materials","130239217","09/01/2019","Leisure Services","Bert Williams Leisure Centre","R2705"
"Wolverhampton City Council","http://opendatacommunities.org/id/metropolitan-district-council/wolverhampton","705916","Nobisco Limited","570982","107.94","Cleaning Supplies and Materials","130238986","02/01/2019","Cleaning","Cleaning of Buildings - General","R2705"
"Wolverhampton City Council","http://opendatacommunities.org/id/metropolitan-district-council/wolverhampton","705916","Nobisco Limited","571538","100.95","Cleaning Supplies and Materials","130239718","11/01/2019","Local Economy","Global Budgets","R2705"
"Wolverhampton City Council","http://opendatacommunities.org/id/metropolitan-district-council/wolverhampton","705916","Nobisco Limited","571540","40.30","Cleaning Supplies and Materials","130239720","11/01/2019","Learning Disability Provider","Duke Street Bungalows","R2705"
"Wolverhampton City Council","http://opendatacommunities.org/id/metropolitan-district-council/wolverhampton","705916","Nobisco Limited","570579","9.14","Cleaning Supplies and Materials","130238877","11/01/2019","Adult Education","Continuing Education","R2705"
"Wolverhampton City Council","http://opendatacommunities.org/id/metropolitan-district-council/wolverhampton","705916","Nobisco Limited","571541","116.95","Cleaning Supplies and Materials","130239721","11/01/2019","Visitor Economy","Bantock - Tea Rooms","R2705"
"Wolverhampton City Council","http://opendatacommunities.org/id/metropolitan-district-council/wolverhampton","705916","Nobisco Limited","571535","109.77","Cleaning Supplies and Materials","130239716","11/01/2019","Catering","Civic Centre Catering","R2705"
"Wolverhampton City Council","http://opendatacommunities.org/id/metropolitan-district-council/wolverhampton","705916","Nobisco Limited","570331","37.70","Cleaning Supplies and Materials","130238650","02/01/2019","Environmental Maintenance","Northicote Farm","R2705"
"Wolverhampton City Council","http://opendatacommunities.org/id/metropolitan-district-council/wolverhampton","705916","Nobisco Limited","570984","133.66","Cleaning Supplies and Materials","130238988","02/01/2019","Leisure Services","Bert Williams Leisure Centre Caf�","R2705"
"Wolverhampton City Council","http://opendatacommunities.org/id/metropolitan-district-council/wolverhampton","705916","Nobisco Limited","571189","35.98","Cleaning Supplies and Materials","130239213","09/01/2019","Cleaning","Cleaning of Buildings - General","R2705"
"Wolverhampton City Council","http://opendatacommunities.org/id/metropolitan-district-council/wolverhampton","705916","Nobisco Limited","571358","122.96","Cleaning Supplies and Materials","130239543","09/01/2019","Transportation","Passenger Transport - General","R2705"
"Wolverhampton City Council","http://opendatacommunities.org/id/metropolitan-district-council/wolverhampton","705916","Nobisco Limited","573943","366.00","Cleaning Supplies and Materials","130241265","25/01/2019","Older People Provider Services","Bradley Lodge Resource Centre","R2705"
"Wolverhampton City Council","http://opendatacommunities.org/id/metropolitan-district-council/wolverhampton","705916","Nobisco Limited","572769","19.42","Cleaning Supplies and Materials","130240523","25/01/2019","Older People Provider Services","Bradley Lodge Resource Centre","R2705"
"Wolverhampton City Council","http://opendatacommunities.org/id/metropolitan-district-council/wolverhampton","705945","Northgate Public Services (UK) Limited","91415488","5,525.47","Computing - Purchase of Software","130238989","16/01/2019","ICTS","Strategic ICTS (ICT Service Budget)","R4531"
"Wolverhampton City Council","http://opendatacommunities.org/id/metropolitan-district-council/wolverhampton","705945","Northgate Public Services (UK) Limited","91415784","1,195.01","Services - Professional Fees","130241140","30/01/2019","Customer Services","City Direct","R4400"
"Wolverhampton City Council","http://opendatacommunities.org/id/metropolitan-district-council/wolverhampton","705946","Northgate Vehicle Hire Limited","SL05395910IN","295.64","Hire of Vehicles","190551577","18/01/2019","Fleet Services","Fleet Management","R3200"
"Wolverhampton City Council","http://opendatacommunities.org/id/metropolitan-district-council/wolverhampton","705946","Northgate Vehicle Hire Limited","SL05395914IN","264.67","Hire of Vehicles","190551579","18/01/2019","Fleet Services","Fleet Management","R3200"
"Wolverhampton City Council","http://opendatacommunities.org/id/metropolitan-district-council/wolverhampton","705946","Northgate Vehicle Hire Limited","SL05367620IN","39.75","Hire of Vehicles","190551573","18/01/2019","Fleet Services","Fleet Management","R3200"
"Wolverhampton City Council","http://opendatacommunities.org/id/metropolitan-district-council/wolverhampton","705946","Northgate Vehicle Hire Limited","IW03988885","16.93","Hire of Vehicles","190551566","18/01/2019","Fleet Services","Fleet Management","R3200"
"Wolverhampton City Council","http://opendatacommunities.org/id/metropolitan-district-council/wolverhampton","705946","Northgate Vehicle Hire Limited","SL05395924IN","264.67","Hire of Vehicles","190551584","18/01/2019","Fleet Services","Fleet Management","R3200"
"Wolverhampton City Council","http://opendatacommunities.org/id/metropolitan-district-council/wolverhampton","705946","Northgate Vehicle Hire Limited","SL05395946IN","264.67","Hire of Vehicles","190551597","18/01/2019","Fleet Services","Fleet Management","R3200"
"Wolverhampton City Council","http://opendatacommunities.org/id/metropolitan-district-council/wolverhampton","705946","Northgate Vehicle Hire Limited","SL05395932IN","295.64","Hire of Vehicles","190551589","18/01/2019","Fleet Services","Fleet Management","R3200"
"Wolverhampton City Council","http://opendatacommunities.org/id/metropolitan-district-council/wolverhampton","705946","Northgate Vehicle Hire Limited","SL05395957IN","295.64","Hire of Vehicles","190551604","18/01/2019","Fleet Services","Fleet Management","R3200"
"Wolverhampton City Council","http://opendatacommunities.org/id/metropolitan-district-council/wolverhampton","705946","Northgate Vehicle Hire Limited","SL05395966IN","264.67","Hire of Vehicles","190551609","18/01/2019","Fleet Services","Fleet Management","R3200"
"Wolverhampton City Council","http://opendatacommunities.org/id/metropolitan-district-council/wolverhampton","705946","Northgate Vehicle Hire Limited","SL05396621IN","387.60","Hire of Vehicles","190551647","18/01/2019","Fleet Services","Fleet Management","R3200"
"Wolverhampton City Council","http://opendatacommunities.org/id/metropolitan-district-council/wolverhampton","705946","Northgate Vehicle Hire Limited","SL05395912IN","264.67","Hire of Vehicles","190551578","18/01/2019","Fleet Services","Fleet Management","R3200"
"Wolverhampton City Council","http://opendatacommunities.org/id/metropolitan-district-council/wolverhampton","705946","Northgate Vehicle Hire Limited","SL05367619IN","39.75","Hire of Vehicles","190551572","18/01/2019","Fleet Services","Fleet Management","R3200"
"Wolverhampton City Council","http://opendatacommunities.org/id/metropolitan-district-council/wolverhampton","705946","Northgate Vehicle Hire Limited","SL05374919IN","15.30","Hire of Vehicles","190551575","18/01/2019","Fleet Services","Fleet Management","R3200"
"Wolverhampton City Council","http://opendatacommunities.org/id/metropolitan-district-council/wolverhampton","705946","Northgate Vehicle Hire Limited","IW04099466","99.02","Hire of Vehicles","190551568","18/01/2019","Fleet Services","Fleet Management","R3200"
"Wolverhampton City Council","http://opendatacommunities.org/id/metropolitan-district-council/wolverhampton","705946","Northgate Vehicle Hire Limited","SL05395937IN","264.67","Hire of Vehicles","190551592","18/01/2019","Fleet Services","Fleet Management","R3200"
"Wolverhampton City Council","http://opendatacommunities.org/id/metropolitan-district-council/wolverhampton","705946","Northgate Vehicle Hire Limited","SL05395921IN","264.67","Hire of Vehicles","190551583","18/01/2019","Fleet Services","Fleet Management","R3200"
"Wolverhampton City Council","http://opendatacommunities.org/id/metropolitan-district-council/wolverhampton","705946","Northgate Vehicle Hire Limited","SL05395930IN","295.64","Hire of Vehicles","190551588","18/01/2019","Fleet Services","Fleet Management","R3200"
"Wolverhampton City Council","http://opendatacommunities.org/id/metropolitan-district-council/wolverhampton","705946","Northgate Vehicle Hire Limited","SL05395941IN","387.60","Hire of Vehicles","190551594","18/01/2019","Fleet Services","Fleet Management","R3200"
"Wolverhampton City Council","http://opendatacommunities.org/id/metropolitan-district-council/wolverhampton","705946","Northgate Vehicle Hire Limited","SL05395961IN","264.67","Hire of Vehicles","190551606","18/01/2019","Fleet Services","Fleet Management","R3200"
"Wolverhampton City Council","http://opendatacommunities.org/id/metropolitan-district-council/wolverhampton","705946","Northgate Vehicle Hire Limited","SL05395949IN","295.64","Hire of Vehicles","190551599","18/01/2019","Fleet Services","Fleet Management","R3200"
"Wolverhampton City Council","http://opendatacommunities.org/id/metropolitan-district-council/wolverhampton","705946","Northgate Vehicle Hire Limited","SL05396589IN","300.39","Hire of Vehicles","190551634","18/01/2019","Fleet Services","Fleet Management","R3200"
"Wolverhampton City Council","http://opendatacommunities.org/id/metropolitan-district-council/wolverhampton","705946","Northgate Vehicle Hire Limited","SL05395976IN","164.54","Hire of Vehicles","190551613","18/01/2019","Fleet Services","Fleet Management","R3200"
"Wolverhampton City Council","http://opendatacommunities.org/id/metropolitan-district-council/wolverhampton","705946","Northgate Vehicle Hire Limited","SL05395989IN","164.54","Hire of Vehicles","190551620","18/01/2019","Fleet Services","Fleet Management","R3200"
"Wolverhampton City Council","http://opendatacommunities.org/id/metropolitan-district-council/wolverhampton","705946","Northgate Vehicle Hire Limited","SL05396000IN","164.54","Hire of Vehicles","190551627","18/01/2019","Fleet Services","Fleet Management","R3200"
"Wolverhampton City Council","http://opendatacommunities.org/id/metropolitan-district-council/wolverhampton","705946","Northgate Vehicle Hire Limited","SL05396591IN","193.80","Hire of Vehicles","190551635","18/01/2019","Fleet Services","Fleet Management","R3200"
"Wolverhampton City Council","http://opendatacommunities.org/id/metropolitan-district-council/wolverhampton","705946","Northgate Vehicle Hire Limited","SL05396596IN","164.54","Hire of Vehicles","190551637","18/01/2019","Fleet Services","Fleet Management","R3200"
"Wolverhampton City Council","http://opendatacommunities.org/id/metropolitan-district-council/wolverhampton","705946","Northgate Vehicle Hire Limited","SL05396003IN","193.80","Hire of Vehicles","190551628","18/01/2019","Fleet Services","Fleet Management","R3200"
"Wolverhampton City Council","http://opendatacommunities.org/id/metropolitan-district-council/wolverhampton","705946","Northgate Vehicle Hire Limited","SL05396615IN","164.54","Hire of Vehicles","190551644","18/01/2019","Fleet Services","Fleet Management","R3200"
"Wolverhampton City Council","http://opendatacommunities.org/id/metropolitan-district-council/wolverhampton","705946","Northgate Vehicle Hire Limited","SL05395982IN","164.54","Hire of Vehicles","190551616","18/01/2019","Fleet Services","Fleet Management","R3200"
"Wolverhampton City Council","http://opendatacommunities.org/id/metropolitan-district-council/wolverhampton","705946","Northgate Vehicle Hire Limited","SL05395996IN","164.54","Hire of Vehicles","190551624","18/01/2019","Fleet Services","Fleet Management","R3200"
"Wolverhampton City Council","http://opendatacommunities.org/id/metropolitan-district-council/wolverhampton","705946","Northgate Vehicle Hire Limited","SL05396587IN","164.54","Hire of Vehicles","190551633","18/01/2019","Fleet Services","Fleet Management","R3200"
"Wolverhampton City Council","http://opendatacommunities.org/id/metropolitan-district-council/wolverhampton","705946","Northgate Vehicle Hire Limited","SL05396580IN","193.80","Hire of Vehicles","190551630","18/01/2019","Fleet Services","Fleet Management","R3200"
"Wolverhampton City Council","http://opendatacommunities.org/id/metropolitan-district-council/wolverhampton","705946","Northgate Vehicle Hire Limited","SL05396610IN","164.54","Hire of Vehicles","190551642","18/01/2019","Fleet Services","Fleet Management","R3200"
"Wolverhampton City Council","http://opendatacommunities.org/id/metropolitan-district-council/wolverhampton","705946","Northgate Vehicle Hire Limited","SL05396617IN","193.80","Hire of Vehicles","190551645","18/01/2019","Fleet Services","Fleet Management","R3200"
"Wolverhampton City Council","http://opendatacommunities.org/id/metropolitan-district-council/wolverhampton","705946","Northgate Vehicle Hire Limited","SL05395916IN","274.17","Hire of Vehicles","190551580","18/01/2019","Fleet Services","Fleet Management","R3200"
"Wolverhampton City Council","http://opendatacommunities.org/id/metropolitan-district-council/wolverhampton","705946","Northgate Vehicle Hire Limited","SL05395964IN","275.12","Hire of Vehicles","190551608","18/01/2019","Fleet Services","Fleet Management","R3200"
"Wolverhampton City Council","http://opendatacommunities.org/id/metropolitan-district-council/wolverhampton","705946","Northgate Vehicle Hire Limited","SL05395979IN","164.54","Hire of Vehicles","190551614","18/01/2019","Fleet Services","Fleet Management","R3200"
"Wolverhampton City Council","http://opendatacommunities.org/id/metropolitan-district-council/wolverhampton","705946","Northgate Vehicle Hire Limited","SL05395991IN","164.54","Hire of Vehicles","190551621","18/01/2019","Fleet Services","Fleet Management","R3200"
"Wolverhampton City Council","http://opendatacommunities.org/id/metropolitan-district-council/wolverhampton","705946","Northgate Vehicle Hire Limited","SL05396583IN","164.54","Hire of Vehicles","190551631","18/01/2019","Fleet Services","Fleet Management","R3200"
"Wolverhampton City Council","http://opendatacommunities.org/id/metropolitan-district-council/wolverhampton","705946","Northgate Vehicle Hire Limited","SL05396608IN","164.54","Hire of Vehicles","190551641","18/01/2019","Fleet Services","Fleet Management","R3200"
"Wolverhampton City Council","http://opendatacommunities.org/id/metropolitan-district-council/wolverhampton","705946","Northgate Vehicle Hire Limited","SL05396606IN","193.80","Hire of Vehicles","190551640","18/01/2019","Fleet Services","Fleet Management","R3200"
"Wolverhampton City Council","http://opendatacommunities.org/id/metropolitan-district-council/wolverhampton","705946","Northgate Vehicle Hire Limited","SL05396578IN","193.80","Hire of Vehicles","190551629","18/01/2019","Fleet Services","Fleet Management","R3200"
"Wolverhampton City Council","http://opendatacommunities.org/id/metropolitan-district-council/wolverhampton","705946","Northgate Vehicle Hire Limited","SL05396619IN","164.54","Hire of Vehicles","190551646","18/01/2019","Fleet Services","Fleet Management","R3200"
"Wolverhampton City Council","http://opendatacommunities.org/id/metropolitan-district-council/wolverhampton","705946","Northgate Vehicle Hire Limited","SL05395909IN","275.12","Hire of Vehicles","190551576","18/01/2019","Fleet Services","Fleet Management","R3200"
"Wolverhampton City Council","http://opendatacommunities.org/id/metropolitan-district-council/wolverhampton","705946","Northgate Vehicle Hire Limited","SL05395918IN","264.67","Hire of Vehicles","190551581","18/01/2019","Fleet Services","Fleet Management","R3200"
"Wolverhampton City Council","http://opendatacommunities.org/id/metropolitan-district-council/wolverhampton","705946","Northgate Vehicle Hire Limited","IW04189475","38.57","Hire of Vehicles","190551569","18/01/2019","Fleet Services","Fleet Management","R3200"
"Wolverhampton City Council","http://opendatacommunities.org/id/metropolitan-district-council/wolverhampton","705946","Northgate Vehicle Hire Limited","SL05359667IN","13.25","Hire of Vehicles","190551571","18/01/2019","Fleet Services","Fleet Management","R3200"
"Wolverhampton City Council","http://opendatacommunities.org/id/metropolitan-district-council/wolverhampton","705946","Northgate Vehicle Hire Limited","SL05359667IN","9.79","Hire of Vehicles","190551571","18/01/2019","Fleet Services","Fleet Management","R3200"
"Wolverhampton City Council","http://opendatacommunities.org/id/metropolitan-district-council/wolverhampton","705946","Northgate Vehicle Hire Limited","SL05395934IN","295.64","Hire of Vehicles","190551590","18/01/2019","Fleet Services","Fleet Management","R3200"
"Wolverhampton City Council","http://opendatacommunities.org/id/metropolitan-district-council/wolverhampton","705946","Northgate Vehicle Hire Limited","SL05395927IN","295.64","Hire of Vehicles","190551586","18/01/2019","Fleet Services","Fleet Management","R3200"
"Wolverhampton City Council","http://opendatacommunities.org/id/metropolitan-district-council/wolverhampton","705946","Northgate Vehicle Hire Limited","SL05395925IN","264.67","Hire of Vehicles","190551585","18/01/2019","Fleet Services","Fleet Management","R3200"
"Wolverhampton City Council","http://opendatacommunities.org/id/metropolitan-district-council/wolverhampton","705946","Northgate Vehicle Hire Limited","SL05395952IN","264.67","Hire of Vehicles","190551601","18/01/2019","Fleet Services","Fleet Management","R3200"
"Wolverhampton City Council","http://opendatacommunities.org/id/metropolitan-district-council/wolverhampton","705946","Northgate Vehicle Hire Limited","SL05395962IN","295.64","Hire of Vehicles","190551607","18/01/2019","Fleet Services","Fleet Management","R3200"
"Wolverhampton City Council","http://opendatacommunities.org/id/metropolitan-district-council/wolverhampton","705946","Northgate Vehicle Hire Limited","SL05395971IN","264.67","Hire of Vehicles","190551611","18/01/2019","Fleet Services","Fleet Management","R3200"
"Wolverhampton City Council","http://opendatacommunities.org/id/metropolitan-district-council/wolverhampton","705946","Northgate Vehicle Hire Limited","SL05396624IN","387.60","Hire of Vehicles","190551648","18/01/2019","Fleet Services","Fleet Management","R3200"
"Wolverhampton City Council","http://opendatacommunities.org/id/metropolitan-district-council/wolverhampton","705946","Northgate Vehicle Hire Limited","SL05396628IN","275.12","Hire of Vehicles","190551650","18/01/2019","Fleet Services","Fleet Management","R3200"
"Wolverhampton City Council","http://opendatacommunities.org/id/metropolitan-district-council/wolverhampton","705946","Northgate Vehicle Hire Limited","SL05373026IN","36.44","Hire of Vehicles","190551574","18/01/2019","Fleet Services","Fleet Management","R3200"
"Wolverhampton City Council","http://opendatacommunities.org/id/metropolitan-district-council/wolverhampton","705946","Northgate Vehicle Hire Limited","IW04238463","125.96","Hire of Vehicles","190551570","18/01/2019","Fleet Services","Fleet Management","R3200"
"Wolverhampton City Council","http://opendatacommunities.org/id/metropolitan-district-council/wolverhampton","705946","Northgate Vehicle Hire Limited","SL05395936IN","264.67","Hire of Vehicles","190551591","18/01/2019","Fleet Services","Fleet Management","R3200"
"Wolverhampton City Council","http://opendatacommunities.org/id/metropolitan-district-council/wolverhampton","705946","Northgate Vehicle Hire Limited","SL05395919IN","264.67","Hire of Vehicles","190551582","18/01/2019","Fleet Services","Fleet Management","R3200"
"Wolverhampton City Council","http://opendatacommunities.org/id/metropolitan-district-council/wolverhampton","705946","Northgate Vehicle Hire Limited","SL05395939IN","295.64","Hire of Vehicles","190551593","18/01/2019","Fleet Services","Fleet Management","R3200"
"Wolverhampton City Council","http://opendatacommunities.org/id/metropolitan-district-council/wolverhampton","705946","Northgate Vehicle Hire Limited","SL05395929IN","295.64","Hire of Vehicles","190551587","18/01/2019","Fleet Services","Fleet Management","R3200"
"Wolverhampton City Council","http://opendatacommunities.org/id/metropolitan-district-council/wolverhampton","705946","Northgate Vehicle Hire Limited","SL05395984IN","295.64","Hire of Vehicles","190551617","18/01/2019","Fleet Services","Fleet Management","R3200"
"Wolverhampton City Council","http://opendatacommunities.org/id/metropolitan-district-council/wolverhampton","705946","Northgate Vehicle Hire Limited","SL05395959IN","264.67","Hire of Vehicles","190551605","18/01/2019","Fleet Services","Fleet Management","R3200"
"Wolverhampton City Council","http://opendatacommunities.org/id/metropolitan-district-council/wolverhampton","705946","Northgate Vehicle Hire Limited","SL05395951IN","289.75","Hire of Vehicles","190551600","18/01/2019","Fleet Services","Fleet Management","R3200"
"Wolverhampton City Council","http://opendatacommunities.org/id/metropolitan-district-council/wolverhampton","705946","Northgate Vehicle Hire Limited","SL05396601IN","264.67","Hire of Vehicles","190551639","18/01/2019","Fleet Services","Fleet Management","R3200"
"Wolverhampton City Council","http://opendatacommunities.org/id/metropolitan-district-council/wolverhampton","705946","Northgate Vehicle Hire Limited","SL05396630IN","387.60","Hire of Vehicles","190551651","18/01/2019","Fleet Services","Fleet Management","R3200"
"Wolverhampton City Council","http://opendatacommunities.org/id/metropolitan-district-council/wolverhampton","705946","Northgate Vehicle Hire Limited","SL05396626IN","274.17","Hire of Vehicles","190551649","18/01/2019","Fleet Services","Fleet Management","R3200"
"Wolverhampton City Council","http://opendatacommunities.org/id/metropolitan-district-council/wolverhampton","705946","Northgate Vehicle Hire Limited","SL05395987IN","164.54","Hire of Vehicles","190551619","18/01/2019","Fleet Services","Fleet Management","R3200"
"Wolverhampton City Council","http://opendatacommunities.org/id/metropolitan-district-council/wolverhampton","705946","Northgate Vehicle Hire Limited","SL05395999IN","193.80","Hire of Vehicles","190551626","18/01/2019","Fleet Services","Fleet Management","R3200"
"Wolverhampton City Council","http://opendatacommunities.org/id/metropolitan-district-council/wolverhampton","705946","Northgate Vehicle Hire Limited","SL05395997IN","164.54","Hire of Vehicles","190551625","18/01/2019","Fleet Services","Fleet Management","R3200"
"Wolverhampton City Council","http://opendatacommunities.org/id/metropolitan-district-council/wolverhampton","705946","Northgate Vehicle Hire Limited","SL05396594IN","164.54","Hire of Vehicles","190551636","18/01/2019","Fleet Services","Fleet Management","R3200"
"Wolverhampton City Council","http://opendatacommunities.org/id/metropolitan-district-council/wolverhampton","705946","Northgate Vehicle Hire Limited","SL05395974IN","164.54","Hire of Vehicles","190551612","18/01/2019","Fleet Services","Fleet Management","R3200"
"Wolverhampton City Council","http://opendatacommunities.org/id/metropolitan-district-council/wolverhampton","705946","Northgate Vehicle Hire Limited","SL05396585IN","193.80","Hire of Vehicles","190551632","18/01/2019","Fleet Services","Fleet Management","R3200"
"Wolverhampton City Council","http://opendatacommunities.org/id/metropolitan-district-council/wolverhampton","705946","Northgate Vehicle Hire Limited","SL05396612IN","164.54","Hire of Vehicles","190551643","18/01/2019","Fleet Services","Fleet Management","R3200"
"Wolverhampton City Council","http://opendatacommunities.org/id/metropolitan-district-council/wolverhampton","705946","Northgate Vehicle Hire Limited","SL05395981IN","274.17","Hire of Vehicles","190551615","18/01/2019","Fleet Services","Fleet Management","R3200"
"Wolverhampton City Council","http://opendatacommunities.org/id/metropolitan-district-council/wolverhampton","705946","Northgate Vehicle Hire Limited","SL05396598IN","275.12","Hire of Vehicles","190551638","18/01/2019","Fleet Services","Fleet Management","R3200"
"Wolverhampton City Council","http://opendatacommunities.org/id/metropolitan-district-council/wolverhampton","705946","Northgate Vehicle Hire Limited","SL05395947IN","193.80","Hire of Vehicles","190551598","18/01/2019","Fleet Services","Fleet Management","R3200"
"Wolverhampton City Council","http://opendatacommunities.org/id/metropolitan-district-council/wolverhampton","705946","Northgate Vehicle Hire Limited","SL05395968IN","193.80","Hire of Vehicles","190551610","18/01/2019","Fleet Services","Fleet Management","R3200"
"Wolverhampton City Council","http://opendatacommunities.org/id/metropolitan-district-council/wolverhampton","705946","Northgate Vehicle Hire Limited","IW04013062","153.90","Hire of Vehicles","190551567","18/01/2019","Fleet Services","Fleet Management","R3200"
"Wolverhampton City Council","http://opendatacommunities.org/id/metropolitan-district-council/wolverhampton","705946","Northgate Vehicle Hire Limited","SL05395986IN","193.80","Hire of Vehicles","190551618","18/01/2019","Fleet Services","Fleet Management","R3200"
"Wolverhampton City Council","http://opendatacommunities.org/id/metropolitan-district-council/wolverhampton","705946","Northgate Vehicle Hire Limited","SL05395942IN","193.80","Hire of Vehicles","190551595","18/01/2019","Fleet Services","Fleet Management","R3200"
"Wolverhampton City Council","http://opendatacommunities.org/id/metropolitan-district-council/wolverhampton","705946","Northgate Vehicle Hire Limited","SL05395992IN","193.80","Hire of Vehicles","190551622","18/01/2019","Fleet Services","Fleet Management","R3200"
"Wolverhampton City Council","http://opendatacommunities.org/id/metropolitan-district-council/wolverhampton","705946","Northgate Vehicle Hire Limited","SL05395954IN","193.80","Hire of Vehicles","190551602","18/01/2019","Fleet Services","Fleet Management","R3200"
"Wolverhampton City Council","http://opendatacommunities.org/id/metropolitan-district-council/wolverhampton","705946","Northgate Vehicle Hire Limited","SL05395944IN","193.80","Hire of Vehicles","190551596","18/01/2019","Fleet Services","Fleet Management","R3200"
"Wolverhampton City Council","http://opendatacommunities.org/id/metropolitan-district-council/wolverhampton","705946","Northgate Vehicle Hire Limited","SL05395994IN","193.80","Hire of Vehicles","190551623","18/01/2019","Fleet Services","Fleet Management","R3200"
"Wolverhampton City Council","http://opendatacommunities.org/id/metropolitan-district-council/wolverhampton","705946","Northgate Vehicle Hire Limited","SL05395956IN","193.80","Hire of Vehicles","190551603","18/01/2019","Fleet Services","Fleet Management","R3200"
"Wolverhampton City Council","http://opendatacommunities.org/id/metropolitan-district-council/wolverhampton","705954","Nottingham Rehab Supplies/Nrs Limited","97649433","743.80","Equipment - Purchase","130238143","09/01/2019","Older People Provider Services","ILS Stores","R4000"
"Wolverhampton City Council","http://opendatacommunities.org/id/metropolitan-district-council/wolverhampton","705957","Nova Training Limited","CG001716","190.00","TPP - Alternative Provision of Education","130239545","04/01/2019","Inclusion Support","Alternative Provision","R5037"
"Wolverhampton City Council","http://opendatacommunities.org/id/metropolitan-district-council/wolverhampton","705957","Nova Training Limited","5356","5,454.92","TPP - Alternative Provision of Education","130241141","23/01/2019","Special Educational Needs","SEN Education OOC","R5037"
"Wolverhampton City Council","http://opendatacommunities.org/id/metropolitan-district-council/wolverhampton","705957","Nova Training Limited","SCH005257","935.00","TPP - Alternative Provision of Education","130239547","04/01/2019","Inclusion Support","Alternative Provision","R5037"
"Wolverhampton City Council","http://opendatacommunities.org/id/metropolitan-district-council/wolverhampton","705957","Nova Training Limited","5357","12,918.31","TPP - Alternative Provision of Education","130241142","23/01/2019","Special Educational Needs","SEN Education OOC","R5037"
"Wolverhampton City Council","http://opendatacommunities.org/id/metropolitan-district-council/wolverhampton","705957","Nova Training Limited","OTH001620","43.00","TPP - Alternative Provision of Education","130239546","04/01/2019","Inclusion Support","Alternative Provision","R5037"
"Wolverhampton City Council","http://opendatacommunities.org/id/metropolitan-district-council/wolverhampton","705966","NPOWER Limited-Mba Accounts Receivable","LGV837HM","199.95","Electricity","190551294","16/01/2019","City Development","Southside","R2100"
"Wolverhampton City Council","http://opendatacommunities.org/id/metropolitan-district-council/wolverhampton","705978","Nuco Training Limited","INV168453","146.45","Training Expenses","130239135","23/01/2019","Adult Education","Skills for Work","R1650"
"Wolverhampton City Council","http://opendatacommunities.org/id/metropolitan-district-council/wolverhampton","705978","Nuco Training Limited","INV168453","5.99","Training Expenses","130239135","23/01/2019","Adult Education","Skills for Work","R1650"
"Wolverhampton City Council","http://opendatacommunities.org/id/metropolitan-district-council/wolverhampton","705978","Nuco Training Limited","INV168261","120.00","Training Expenses","130238881","16/01/2019","Adult Education","Skills for Work","R1650"
"Wolverhampton City Council","http://opendatacommunities.org/id/metropolitan-district-council/wolverhampton","705978","Nuco Training Limited","INV168261","19.50","Training Expenses","130238881","16/01/2019","Adult Education","Skills for Work","R1650"
"Wolverhampton City Council","http://opendatacommunities.org/id/metropolitan-district-council/wolverhampton","705978","Nuco Training Limited","INV168261","52.00","Training Expenses","130238881","16/01/2019","Adult Education","Skills for Work","R1650"
"Wolverhampton City Council","http://opendatacommunities.org/id/metropolitan-district-council/wolverhampton","705994","Oaklawn Guest House Limited","P19607820190114","1,037.00","TPP - Accommodation","190550240","16/01/2019","Community Financial Support","Destitute Plus","R5603"
"Wolverhampton City Council","http://opendatacommunities.org/id/metropolitan-district-council/wolverhampton","705994","Oaklawn Guest House Limited","P19607820190114","476.00","TPP - Accommodation","190550240","16/01/2019","Community Financial Support","Destitute Plus","R5603"
"Wolverhampton City Council","http://opendatacommunities.org/id/metropolitan-district-council/wolverhampton","705994","Oaklawn Guest House Limited","P19607820190114","119.00","TPP - Accommodation","190550240","16/01/2019","Community Financial Support","Destitute Plus","R5603"
"Wolverhampton City Council","http://opendatacommunities.org/id/metropolitan-district-council/wolverhampton","705995","Oakley�S Limited","176968","24.14","Equipment - Purchase","190551204","16/01/2019","Fleet Services","Fleet Management","R4000"
"Wolverhampton City Council","http://opendatacommunities.org/id/metropolitan-district-council/wolverhampton","705995","Oakley�S Limited","177217","28.72","Equipment - Purchase","190551939","18/01/2019","Fleet Services","Fleet Management","R4000"
"Wolverhampton City Council","http://opendatacommunities.org/id/metropolitan-district-council/wolverhampton","705995","Oakley�S Limited","177179","33.66","Equipment - Purchase","190551938","18/01/2019","Fleet Services","Fleet Management","R4000"
"Wolverhampton City Council","http://opendatacommunities.org/id/metropolitan-district-council/wolverhampton","705995","Oakley�S Limited","177153","4.84","Equipment - Purchase","190551936","18/01/2019","Fleet Services","Fleet Management","R4000"
"Wolverhampton City Council","http://opendatacommunities.org/id/metropolitan-district-council/wolverhampton","705995","Oakley�S Limited","177120","43.09","Equipment - Purchase","190551934","18/01/2019","Fleet Services","Fleet Management","R4000"
"Wolverhampton City Council","http://opendatacommunities.org/id/metropolitan-district-council/wolverhampton","705995","Oakley�S Limited","177178","22.19","Equipment - Purchase","190551937","18/01/2019","Fleet Services","Fleet Management","R4000"
"Wolverhampton City Council","http://opendatacommunities.org/id/metropolitan-district-council/wolverhampton","705995","Oakley�S Limited","177178","110.17","Equipment - Purchase","190551937","18/01/2019","Fleet Services","Fleet Management","R4000"
"Wolverhampton City Council","http://opendatacommunities.org/id/metropolitan-district-council/wolverhampton","705995","Oakley�S Limited","177121","36.59","Equipment - Purchase","190551935","18/01/2019","Fleet Services","Fleet Management","R4000"
"Wolverhampton City Council","http://opendatacommunities.org/id/metropolitan-district-council/wolverhampton","705995","Oakley�S Limited","177121","12.16","Equipment - Purchase","190551935","18/01/2019","Fleet Services","Fleet Management","R4000"
"Wolverhampton City Council","http://opendatacommunities.org/id/metropolitan-district-council/wolverhampton","705995","Oakley�S Limited","177121","9.13","Equipment - Purchase","190551935","18/01/2019","Fleet Services","Fleet Management","R4000"
"Wolverhampton City Council","http://opendatacommunities.org/id/metropolitan-district-council/wolverhampton","705995","Oakley�S Limited","177261","160.16","Materials","130241267","30/01/2019","Environmental Maintenance","Ground Maintenance East","R4007"
"Wolverhampton City Council","http://opendatacommunities.org/id/metropolitan-district-council/wolverhampton","705995","Oakley�S Limited","177261","48.16","Materials","130241267","30/01/2019","Environmental Maintenance","Ground Maintenance East","R4007"
"Wolverhampton City Council","http://opendatacommunities.org/id/metropolitan-district-council/wolverhampton","705995","Oakley�S Limited","177261","35.00","Comms - Postage","130241267","30/01/2019","Environmental Maintenance","Ground Maintenance East","R4503"
"Wolverhampton City Council","http://opendatacommunities.org/id/metropolitan-district-council/wolverhampton","705997","Objectif Lune Consulting Limited","FF114-002008","2,700.00","Equipment - R & M","130239548","30/01/2019","ICTS","Document Centre - General","R4003"
"Wolverhampton City Council","http://opendatacommunities.org/id/metropolitan-district-council/wolverhampton","706006","OCN (Open College Network) West Mids","34618","896.00","Exam Expenses (Non-Employee)","130238656","18/01/2019","Adult Education","Discretionary Fund","R4630"
"Wolverhampton City Council","http://opendatacommunities.org/id/metropolitan-district-council/wolverhampton","706007","OCR (Cambridge)","101140170","499.95","Exam Expenses (Non-Employee)","130239999","16/01/2019","Adult Education","Discretionary Fund","R4630"
"Wolverhampton City Council","http://opendatacommunities.org/id/metropolitan-district-council/wolverhampton","706007","OCR (Cambridge)","101153624","1,833.15","Exam Expenses (Non-Employee)","130238882","16/01/2019","Adult Education","Discretionary Fund","R4630"
"Wolverhampton City Council","http://opendatacommunities.org/id/metropolitan-district-council/wolverhampton","706007","OCR (Cambridge)","101154427","652.85","Exam Expenses (Non-Employee)","130240000","30/01/2019","Adult Education","Discretionary Fund","R4630"
"Wolverhampton City Council","http://opendatacommunities.org/id/metropolitan-district-council/wolverhampton","706007","OCR (Cambridge)","160105303","-103.75","Exam Expenses (Non-Employee)","130240002","30/01/2019","Adult Education","Discretionary Fund","R4630"
"Wolverhampton City Council","http://opendatacommunities.org/id/metropolitan-district-council/wolverhampton","706007","OCR (Cambridge)","101156123","86.55","Exam Expenses (Non-Employee)","130240001","30/01/2019","Adult Education","Discretionary Fund","R4630"
"Wolverhampton City Council","http://opendatacommunities.org/id/metropolitan-district-council/wolverhampton","706030","Old Fallings Playgroup","NEF Spring 2019 INST 1","1,498.13","TPP - Private Nursery Education Funding","190553185","23/01/2019","Early Years","Early Years Universal Entitlement for 3 and 4 Year Olds","R5035"
"Wolverhampton City Council","http://opendatacommunities.org/id/metropolitan-district-council/wolverhampton","706030","Old Fallings Playgroup","TFT Spring 2019 Inst 1","4,205.10","TPP - Private Nursery Education Funding","190553192","23/01/2019","Early Years","Early Years Entitlement Funding for Disadvantaged 2 Year Olds","R5035"
"Wolverhampton City Council","http://opendatacommunities.org/id/metropolitan-district-council/wolverhampton","706064","Opus Energy Limited","65609657","133.73","Electricity","190555576","30/01/2019","Estates and Valuations","I10 Rental Income","R2100"
"Wolverhampton City Council","http://opendatacommunities.org/id/metropolitan-district-council/wolverhampton","706068","EE Limited","01280932038","17,934.41","Comms - Mobile Telephones","130240527","30/01/2019","ICTS","Strategic ICTS (ICT Service Budget)","R4507"
"Wolverhampton City Council","http://opendatacommunities.org/id/metropolitan-district-council/wolverhampton","706068","EE Limited","01280212618","99.97","Comms - Mobile Telephones","130239725","09/01/2019","ICTS","Strategic ICTS (ICT Service Budget)","R4507"
"Wolverhampton City Council","http://opendatacommunities.org/id/metropolitan-district-council/wolverhampton","706068","EE Limited","01280211794","17,961.66","Comms - Mobile Telephones","130238883","09/01/2019","ICTS","Strategic ICTS (ICT Service Budget)","R4507"
"Wolverhampton City Council","http://opendatacommunities.org/id/metropolitan-district-council/wolverhampton","706068","EE Limited","C2039895310","-3,945.51","Comms - Mobile Telephones","130238884","09/01/2019","ICTS","Strategic ICTS (ICT Service Budget)","R4507"
"Wolverhampton City Council","http://opendatacommunities.org/id/metropolitan-district-council/wolverhampton","706068","EE Limited","C2039895310","0.04","Comms - Mobile Telephones","130238884","09/01/2019","ICTS","Strategic ICTS (ICT Service Budget)","R4507"
"Wolverhampton City Council","http://opendatacommunities.org/id/metropolitan-district-council/wolverhampton","706068","EE Limited","C2039895310","0.01","Comms - Mobile Telephones","130238884","09/01/2019","ICTS","Strategic ICTS (ICT Service Budget)","R4507"
"Wolverhampton City Council","http://opendatacommunities.org/id/metropolitan-district-council/wolverhampton","706068","EE Limited","126309929","-50.00","Comms - Mobile Telephones","130224597","02/01/2019","ICTS","Strategic ICTS (ICT Service Budget)","R4507"
"Wolverhampton City Council","http://opendatacommunities.org/id/metropolitan-district-council/wolverhampton","706068","EE Limited","126303575","130.00","Comms - Mobile Telephones","130224772","02/01/2019","ICTS","Strategic ICTS (ICT Service Budget)","R4507"
"Wolverhampton City Council","http://opendatacommunities.org/id/metropolitan-district-council/wolverhampton","706120","P A & S G Southall","SVNEWS050","42.55","Books","130239218","02/01/2019","Local Economy","Spring Vale Library","R4309"
"Wolverhampton City Council","http://opendatacommunities.org/id/metropolitan-district-council/wolverhampton","706120","P A & S G Southall","SVNEWS051","41.15","Books","130242192","30/01/2019","Local Economy","Spring Vale Library","R4309"
"Wolverhampton City Council","http://opendatacommunities.org/id/metropolitan-district-council/wolverhampton","706123","P A Turner","TFT Spring 2019 Inst 1","4,527.36","TPP - Private Nursery Education Funding","190553192","23/01/2019","Early Years","Early Years Entitlement Funding for Disadvantaged 2 Year Olds","R5035"
"Wolverhampton City Council","http://opendatacommunities.org/id/metropolitan-district-council/wolverhampton","706123","P A Turner","NEF Spring 2019 INST 1","22,950.00","TPP - Private Nursery Education Funding","190553185","23/01/2019","Early Years","Early Years Universal Entitlement for 3 and 4 Year Olds","R5035"
"Wolverhampton City Council","http://opendatacommunities.org/id/metropolitan-district-council/wolverhampton","706147","P Wilcox","PW18-40","4,935.00","Services - Professional Fees","130237689","04/01/2019","School Planning & Resources","Music Support Team","R4400"
"Wolverhampton City Council","http://opendatacommunities.org/id/metropolitan-district-council/wolverhampton","706154","P.F.Cusack (Tool Supplies) Limited","0000946084","512.88","Materials","130237895","09/01/2019","Highways Maintenance","Patching","R4007"
"Wolverhampton City Council","http://opendatacommunities.org/id/metropolitan-district-council/wolverhampton","706157","P.J. Arnold Limited","12118","2,198.00","R&M - Departmental planned (external)","130240723","25/01/2019","Maintenance Programme","Centralised R&M","R2001"
"Wolverhampton City Council","http://opendatacommunities.org/id/metropolitan-district-council/wolverhampton","706198","Parkeon Limited","UK113851","10.00","Equipment - R & M","130238766","09/01/2019","Parking Services","St Peter�s Car Park","R4003"
"Wolverhampton City Council","http://opendatacommunities.org/id/metropolitan-district-council/wolverhampton","706198","Parkeon Limited","UK113852","996.66","Equipment - R & M","130238657","09/01/2019","Parking Services","Car Parks Operational Staff","R4003"
"Wolverhampton City Council","http://opendatacommunities.org/id/metropolitan-district-council/wolverhampton","706214","Passenger Lift Services Limited","115985","21.80","Equipment - Purchase","190551902","18/01/2019","Fleet Services","Fleet Management","R4000"
"Wolverhampton City Council","http://opendatacommunities.org/id/metropolitan-district-council/wolverhampton","706214","Passenger Lift Services Limited","115985","30.15","Equipment - Purchase","190551902","18/01/2019","Fleet Services","Fleet Management","R4000"
"Wolverhampton City Council","http://opendatacommunities.org/id/metropolitan-district-council/wolverhampton","706214","Passenger Lift Services Limited","115985","133.22","Equipment - Purchase","190551902","18/01/2019","Fleet Services","Fleet Management","R4000"
"Wolverhampton City Council","http://opendatacommunities.org/id/metropolitan-district-council/wolverhampton","706214","Passenger Lift Services Limited","115887","473.52","Equipment - Purchase","190551191","16/01/2019","Fleet Services","Fleet Management","R4000"
"Wolverhampton City Council","http://opendatacommunities.org/id/metropolitan-district-council/wolverhampton","706240","PDE Waste Technologies Limited","PDE20078","52.47","Equipment - R & M","130240724","18/01/2019","Markets","Wolverhampton Indoor and Open Market","R4003"
"Wolverhampton City Council","http://opendatacommunities.org/id/metropolitan-district-council/wolverhampton","706240","PDE Waste Technologies Limited","PDE20078","15.00","Equipment - R & M","130240724","18/01/2019","Markets","Wolverhampton Indoor and Open Market","R4003"
"Wolverhampton City Council","http://opendatacommunities.org/id/metropolitan-district-council/wolverhampton","706240","PDE Waste Technologies Limited","PDE20078","2.15","Equipment - R & M","130240724","18/01/2019","Markets","Wolverhampton Indoor and Open Market","R4003"
"Wolverhampton City Council","http://opendatacommunities.org/id/metropolitan-district-council/wolverhampton","706240","PDE Waste Technologies Limited","PDE20078","123.00","Equipment - R & M","130240724","18/01/2019","Markets","Wolverhampton Indoor and Open Market","R4003"
"Wolverhampton City Council","http://opendatacommunities.org/id/metropolitan-district-council/wolverhampton","706240","PDE Waste Technologies Limited","PDE20079","220.20","Equipment - R & M","130240725","18/01/2019","Markets","Wolverhampton Indoor and Open Market","R4003"
"Wolverhampton City Council","http://opendatacommunities.org/id/metropolitan-district-council/wolverhampton","706240","PDE Waste Technologies Limited","PDE19997","325.00","Equipment - R & M","130239398","04/01/2019","Markets","Bilston Market and Licensed Operations","R4003"
"Wolverhampton City Council","http://opendatacommunities.org/id/metropolitan-district-council/wolverhampton","706290","Penham Excel Limited","332672","575.00","Services - Professional Fees","130237691","18/01/2019","Estates and Valuations","Industrial Premises ; Fordhouse Road","R4400"
"Wolverhampton City Council","http://opendatacommunities.org/id/metropolitan-district-council/wolverhampton","706290","Penham Excel Limited","314307RE-ISSUE","445.00","Services - Professional Fees","130240091","30/01/2019","Public Protection","EHTS Operational Costs","R4400"
"Wolverhampton City Council","http://opendatacommunities.org/id/metropolitan-district-council/wolverhampton","706298","Penn Kids Day Nursery","TFT Spring 2019 Inst 1","7,922.88","TPP - Private Nursery Education Funding","190553192","23/01/2019","Early Years","Early Years Entitlement Funding for Disadvantaged 2 Year Olds","R5035"
"Wolverhampton City Council","http://opendatacommunities.org/id/metropolitan-district-council/wolverhampton","706298","Penn Kids Day Nursery","NEF Spring 2019 INST 1","33,966.00","TPP - Private Nursery Education Funding","190553185","23/01/2019","Early Years","Early Years Universal Entitlement for 3 and 4 Year Olds","R5035"
